Cogmind - Beta 10.2 @@@ ROGUE MODE // 2021.01.01 @ 02:09:20 Player: cptwinky Result: Destroyed by Striker with Plasma Lance Performance ------------- Evolutions (9) 4500 Regions Visited (34) 6800 Robots Destroyed (356) 1780 Value Destroyed (13973) 13973 Prototype IDs (89) 1780 Alien Tech Used (0) 0 Bonus (9313) 9313 TOTAL SCORE: 38146 Bonus ------- Triggered High Security 500 High Alert Combat Kills 2039 Follower Combat Kills 4759 Network Hubs Disabled 200 Met Data Miner 300 Met Imprinter 300 Was Imprinted 300 Met Warlord at Base 500 MAIN.C Attacked Warlord 500 Built Enhanced Grunts 300 A7 Reached Mainframe 300 Friendly Fire -685 Cogmind --------- Core Integrity 0/1600 Matter 127/300 Energy 84/900 System Corruption 9% Temperature Cool (0) Movement Core (150) Ox2 Location -1/Command Parts ------- > --- POWER (2) -------- (None) > --- PROPULSION (6) --- (None) > --- UTILITY (11) ----- Advanced Energy Well > --- WEAPON (6) ------- Vibroblade > --- INVENTORY (4) ---- (None) Peak State ------------ > --- POWER ------------ Quantum Reactor Quantum Reactor > --- PROPULSION ------- Combat Gravmag System Combat Gravmag System Combat Gravmag System Combat Gravmag System Cooled Antigrav System Combat Linear Gravjet > --- UTILITY ---------- 2N-1CE's Frost Array Large Storage Unit Large Storage Unit Improved Melee Analysis Suite Armor Integrity Analyzer Microactuators Experimental Transmission Jammer Zionite Shade Armor Heavy Regenerative Plating Antimissile System > --- WEAPON ----------- Improved Potential Cannon Phasing Sabre Vibroblade Molecular Scythe Makeshift Spear > --- INVENTORY -------- Advanced Energy Well Precision Energy Filter Reaction Control System Centrium Medium Armor Plating Zionite Shade Carapace Improved System Restoration Module BFG-9k Vortex Edition KE Penetrator Tactical Quantum Warhead [Rating: 194] Favorites ----------- Power Reinforced Deuterium Engine Engine Reinforced Deuterium Engine Power Core Micro Fission Core Reactor Quantum Reactor Propulsion Combat Gravmag System Treads Light Treads Leg Carbon-fiber Leg Hover Unit Combat Gravmag System Utility High-capacity Storage Unit Device Long-range Sensor Array Storage High-capacity Storage Unit Processor Advanced Signal Interpreter Hackware Hacking Suite Protection Improved Heavy Armor Plating Weapon EM Pulse Cannon Energy Gun Improved EM Shotgun Energy Cannon EM Pulse Cannon Ballistic Gun Light Assault Rifle Ballistic Cannon Flak Cannon Launcher Improved Proton Missile Launcher Special Weapon Improved Remote Datajack Impact Weapon Makeshift Hammer Slashing Weapon Great Axe Piercing Weapon Makeshift Spear Special Melee Weapon Datajack Build | -11 -10 -10 -9 -9 -9 -8 -8 -7 -7 -7 -7 -6 -6 -6 -6 -6 -6 -6 -5 -5 -5 -5 -5 -5 -4 -4 -4 -4 -3 -3 -2 -2 -1 -1 ------- Run | Scr Mat Min Mat Min Exi Min Mat Fac Low Low Dat Pro Fac Was Fac Low Low Zio Pro Fac Ext Cet Arc Hub Fac Upp Upp War Pro Res Res Tes Acc Com Slots Evolved 18 | . . . 2 . . . 2 2 . . . . 2 . . . . . . 2 . . . . 2 . . . . 2 2 . 2 . Power 1 | . . . . . . . . . . . . . 1 . . . . . . . . . . . . . . . . . . . . . Propulsion 4 | . . . . . . . 1 1 . . . . 1 . . . . . . . . . . . . . . . . 1 . . . . Utility 9 | . . . 2 . . . 1 1 . . . . . . . . . . . 2 . . . . 2 . . . . 1 . . . . Weapon 4 | . . . . . . . . . . . . . . . . . . . . . . . . . . . . . . . 2 . 2 . Parts Attached 534 | 6 19 15 27 5 . 13 29 30 24 8 . 20 18 . 22 16 6 3 12 20 33 8 3 8 29 8 10 10 8 13 10 41 33 27 Power 30 | 1 1 2 2 1 . 1 2 3 1 . . 1 1 . . . . . . 1 2 . . . 2 . . . 1 1 1 2 4 . Engine 12 | 1 1 2 2 1 . . 2 . 1 . . 1 1 . . . . . . . . . . . . . . . . . . . . . Core 11 | . . . . . . 1 . 3 . . . . . . . . . . . 1 2 . . . 2 . . . 1 . 1 . . . Reactor 7 | . . . . . . . . . . . . . . . . . . . . . . . . . . . . . . 1 . 2 4 . Propulsion 63 | 2 4 2 9 . . 2 11 7 6 . . . 4 . . . . . . 3 1 3 . . 2 . . 2 . 1 . . 1 3 Treads 38 | 2 4 2 9 . . 2 11 5 2 . . . . . . . . . . . . 1 . . . . . . . . . . . . Leg 1 | . . . . . . . . 1 . . . . . . . . . . . . . . . . . . . . . . . . . . Wheel . | . . . . . . . . . . . . . . . . . . . . . . . . . . . . . . . . . . . Hover 24 | . . . . . . . . 1 4 . . . 4 . . . . . . 3 1 2 . . 2 . . 2 . 1 . . 1 3 Flight . | . . . . . . . . . . . . . . . . . . . . . . . . . . . . . . . . . . . Utility 214 | 1 7 . 6 1 . . 6 5 7 5 . 10 4 . 12 7 2 2 7 12 20 2 1 5 12 3 5 8 7 7 6 17 15 12 Device 106 | . . . . . . . 2 . 2 2 . 6 1 . 7 6 2 2 5 6 11 . 1 . 9 1 3 7 3 3 5 9 6 7 Storage 19 | 1 6 . . . . . . . 2 . . . 1 . 1 . . . . 1 . . . . . . . . . 1 . 1 2 3 Processor 10 | . 1 . . . . . 1 1 . . . . . . . 1 . . 1 . . . . . . . . 1 . 1 . 1 2 . Hackware 3 | . . . 1 . . . . 1 . . . . 1 . . . . . . . . . . . . . . . . . . . . . Protection 76 | . . . 5 1 . . 3 3 3 3 . 4 1 . 4 . . . 1 5 9 2 . 5 3 2 2 . 4 2 1 6 5 2 Artifact . | . . . . . . . . . . . . . . . . . . . . . . . . . . . . . . . . . . . Weapon 227 | 2 7 11 10 3 . 10 10 15 10 3 . 9 9 . 10 9 4 1 5 4 10 3 2 3 13 5 5 . . 4 3 22 13 12 Energy Gun 24 | . . . 4 2 . 4 . . . . . 2 . . 1 1 . . . . . 1 . 1 2 2 1 . . . . 3 . . Energy Cannon 79 | . . . . . . 1 1 9 8 2 . 5 5 . 5 2 3 . . 1 4 1 2 1 6 2 2 . . 3 . 9 4 3 Ballistic Gun 30 | 2 4 7 . . . 2 7 2 . . . . . . 1 . . . . . . 1 . . . . . . . . . . 3 1 Ballistic Cannon 4 | . . . 2 . . . . . . . . . . . . . . . . . . . . . . . . . . . . 2 . . Launcher 55 | . 3 4 3 1 . 3 1 3 2 1 . 2 2 . 2 5 1 1 4 1 3 . . 1 3 1 2 . . 1 . 2 1 2 Special Weapon 4 | . . . . . . . . . . . . . . . . . . . . . 3 . . . 1 . . . . . . . . . Impact Weapon 4 | . . . . . . . . . . . . . . . . . . . . . . . . . . . . . . . . . 2 2 Slashing Weapon 23 | . . . 1 . . . . 1 . . . . 2 . . . . . 1 2 . . . . 1 . . . . . 3 6 2 4 Piercing Weapon 3 | . . . . . . . . . . . . . . . 1 1 . . . . . . . . . . . . . . . . 1 . Special Melee Weapon 1 | . . . . . . . 1 . . . . . . . . . . . . . . . . . . . . . . . . . . . Unidentified Prototypes 36 | . . . . . . . 1 2 . . . . . . . . . 1 . . 2 4 . 2 3 . . 3 . 2 1 8 6 1 Parts Lost 57 | . 1 7 8 2 . 2 1 3 . . . 1 . . 1 . . . . 1 1 . . . . . . . . . . 1 3 25 Power 7 | . . 2 1 . . 1 . 1 . . . . . . . . . . . . . . . . . . . . . . . . . 2 Propulsion 13 | . . 2 3 . . . . . . . . . . . . . . . . 1 . . . . . . . . . . . . . 7 Utility 19 | . . . 1 1 . . 1 2 . . . 1 . . . . . . . . 1 . . . . . . . . . . 1 . 11 Weapon 18 | . 1 3 3 1 . 1 . . . . . . . . 1 . . . . . . . . . . . . . . . . . 3 5 Highest Loss Streak 19 | . 1 6 7 2 . 2 1 2 . . . 1 . . 1 . . . . 1 1 . . . . . . . . . . 1 2 19 Average Slot Usage (%) 95 | . 98 99 98 99 100 99 99 95 99 100 100 99 94 100 95 93 93 93 93 93 93 93 94 93 94 94 94 93 94 94 93 94 83 87 Engine 7 | . 14 13 10 11 11 6 7 . 6 7 7 7 9 13 13 13 13 13 13 7 4 . . . . . . . . . . . . . Core 2 | . . . . . . 4 1 5 . . . . . . . . . . . 2 5 11 11 11 10 10 10 10 10 5 4 2 . . Treads 9 | . 28 27 21 22 22 22 27 27 23 . . . . . . . . . . . . . . . . . . . . . . . . . Hover 18 | . . . . . . . . . 6 30 30 30 30 33 33 33 33 33 33 28 29 28 29 29 26 26 26 26 26 28 26 26 24 21 Device 6 | . . . . . . . 3 . 7 12 7 10 . 6 8 6 6 6 5 10 9 5 10 7 13 14 14 16 19 17 18 19 10 12 Storage 14 | . 26 28 22 22 22 22 18 15 15 15 15 15 13 13 13 13 13 13 13 11 11 11 11 11 10 10 10 10 10 9 8 8 8 8 Processor 5 | . . . . . . . 8 10 15 15 15 15 13 13 6 6 6 6 6 5 5 5 5 5 5 5 5 5 5 8 4 4 7 7 Hackware 2 | . . . 10 11 11 11 9 8 . . . . 6 6 . . . . . . . . . . . . . . . . . . . . Protection 8 | . . . 10 11 11 11 5 8 6 2 7 3 5 . 4 6 6 6 6 11 12 17 11 14 16 15 15 13 11 10 10 9 11 9 Energy Gun 3 | . . . 13 21 22 16 2 . . . . 1 . . . . . . . . . 3 . . . . 1 . . . . . . . Energy Cannon 6 | . . . . . . . 2 11 14 14 15 12 12 13 9 9 7 13 6 6 7 . 10 9 9 9 8 10 10 8 4 3 1 . Ballistic Gun 3 | . 27 24 3 . . 4 12 3 . . . . . . 2 . . . . . . . . . . . . . . . . . 2 1 Slashing Weapon 1 | . . . . . . . . . . . . . . . . . . . . 2 . . . . . . . . . . 11 12 11 11 Naked Turns . | . . . . . . . . . . . . . . . . . . . . . . . . . . . . . . . . . . . Heaviest Build 154 | 9 74 76 84 84 82 83 83 82 88 57 54 59 78 71 115 113 109 107 107 125 115 105 106 105 111 110 110 109 116 132 140 154 145 151 Greatest Support 160 | 40 40 40 40 40 40 40 63 96 99 77 77 77 119 119 119 119 119 119 119 122 125 125 125 125 125 120 120 120 115 140 140 160 158 152 Greatest Overweight (x) 2 | . 1 1 2 2 2 2 1 1 1 . . . . . . 1 1 1 1 1 . 1 . . . . . . 1 . . 1 1 1 Average Overweight (x) . | . . 1 1 2 2 1 1 . . . . . . . . . . . . . . . . . . . . . . . . . . . Largest Inventory Capacity 24 | 6 20 20 20 20 20 20 20 20 20 16 16 16 16 16 18 18 18 18 18 18 18 18 18 18 18 18 18 18 18 18 18 18 24 16 Average Capacity 18 | 5 13 20 20 20 20 20 20 20 19 16 16 16 16 16 16 18 18 18 18 18 18 18 18 18 18 18 18 18 18 18 18 18 16 15 Most Carried 20 | 4 17 20 20 20 20 20 20 20 20 16 16 16 16 16 17 18 18 18 18 18 18 18 18 18 18 18 18 18 18 18 18 18 19 16 Average Carried 17 | 3 10 16 17 19 18 19 19 19 19 16 16 15 15 16 15 17 17 17 17 17 17 17 18 18 16 17 17 17 17 17 17 17 15 14 Final Capacity 20 | 6 20 20 20 20 20 20 20 20 16 16 16 16 16 16 18 18 18 18 18 18 18 18 18 18 18 18 18 18 18 18 18 18 16 4 Final Carried 20 | 4 17 20 20 18 20 20 20 20 16 16 16 16 16 16 17 18 18 18 18 18 18 18 18 18 17 18 18 18 18 18 18 18 16 . Class Distribution -------------------- 33% | Machinist-Mutant 28% | Scavenger-Mutant 28% | Hauler-Mutant 5% | Commander-Mutant Dominant Class ---------------- Mutant | -10/Materials Hauler-Mutant | -10/Mines Hauler-Mutant | -9/Materials Hauler-Mutant | -9/Mines Hauler-Mutant | -9/Exiles Hauler-Mutant | -8/Mines Scavenger-Mutant | -8/Materials Hauler-Mutant | -7/Factory Scavenger-Mutant | -7/Lower Caves Scavenger-Mutant | -7/Lower Caves Scavenger-Mutant | -7/Data Miner Scavenger-Mutant | -6/Proximity Caves Scavenger-Mutant | -6/Factory Scavenger-Mutant | -6/Waste Machinist-Mutant | -6/Factory Machinist-Mutant | -6/Lower Caves Machinist-Mutant | -6/Lower Caves Scavenger-Mutant | -6/Zion Machinist-Mutant | -5/Proximity Caves Machinist-Mutant | -5/Factory Machinist-Mutant | -5/Extension Commander-Mutant | -5/Cetus Machinist-Mutant | -5/Archives Machinist-Mutant | -5/Hub_04(d) Machinist-Mutant | -4/Factory Scavenger-Mutant | -4/Upper Caves Scavenger-Mutant | -4/Upper Caves Commander-Mutant | -4/Warlord Commander-Mutant | -3/Proximity Caves Scavenger-Mutant | -3/Research Scavenger-Mutant | -2/Research Scavenger-Mutant | -2/Testing Machinist-Mutant | -1/Access Machinist-Mutant | -1/Command Resources | -11 -10 -10 -9 -9 -9 -8 -8 -7 -7 -7 -7 -6 -6 -6 -6 -6 -6 -6 -5 -5 -5 -5 -5 -5 -4 -4 -4 -4 -3 -3 -2 -2 -1 -1 ----------- Run | Scr Mat Min Mat Min Exi Min Mat Fac Low Low Dat Pro Fac Was Fac Low Low Zio Pro Fac Ext Cet Arc Hub Fac Upp Upp War Pro Res Res Tes Acc Com Matter Collected 9159 | 274 419 520 594 65 . 246 580 476 280 120 . 225 210 . 203 581 110 138 370 221 399 18 268 82 401 130 430 110 80 115 88 515 508 383 Remotely . | . . . . . . . . . . . . . . . . . . . . . . . . . . . . . . . . . . . Salvage Created 14039 | 66 647 373 841 554 . 439 1179 1298 461 285 . 208 180 . 257 547 69 . 271 602 564 187 . 238 578 142 171 . 340 634 88 792 1096 932 Parts 687 | . 37 22 71 39 . 32 72 54 12 6 . 6 11 . 14 25 2 . 10 27 21 9 . 7 30 7 4 . 13 25 2 35 53 41 Haulers Intercepted 14 | . 2 . 2 . . . 3 1 . . . . 1 . . . . . . . . . . . . . . . . . . . 5 . Recyclers Shooed 10 | . 4 1 . . . . 2 1 . . . . . . . . . . . . . . . . . . . . . . . . 1 1 Parts Field Recycled . | . . . . . . . . . . . . . . . . . . . . . . . . . . . . . . . . . . . Retrieved Matter . | . . . . . . . . . . . . . . . . . . . . . . . . . . . . . . . . . . . Parts Self-Destructed 54 | . . . . . . . . . 10 2 . 9 . . . 12 2 . 4 . . . . . . 4 1 9 1 . . . . . Prevented 51 | . . . . . . . . . 4 4 . 11 . . . 9 . . . . . . . . . . 2 8 13 . . . . . Kills | -11 -10 -10 -9 -9 -9 -8 -8 -7 -7 -7 -7 -6 -6 -6 -6 -6 -6 -6 -5 -5 -5 -5 -5 -5 -4 -4 -4 -4 -3 -3 -2 -2 -1 -1 ------- Run | Scr Mat Min Mat Min Exi Min Mat Fac Low Low Dat Pro Fac Was Fac Low Low Zio Pro Fac Ext Cet Arc Hub Fac Upp Upp War Pro Res Res Tes Acc Com Combat Hostiles Destroyed 294 | . 11 25 28 19 . 17 19 19 12 5 . 2 3 . 7 19 3 . 8 11 7 2 . 1 11 2 3 . 3 7 1 8 19 22 Melee 29 | . . . 1 . . . . . 1 . . . . . . . . . . 2 . . . . . . . . . . 1 4 8 12 Guns 55 | . 4 8 5 13 . 4 14 4 . . . . . . 1 . . . . . . . . . 2 . . . . . . . . . Cannons 43 | . . . 13 . . . 3 7 5 1 . . . . . . . . . 5 3 . . 1 1 . 1 . . . . 1 1 1 AOE 128 | . 7 17 7 6 . 13 2 7 6 1 . . 3 . 4 18 2 . 8 . 2 . . . 3 1 2 . . . . 1 9 9 Classes Destroyed 26 | 1 6 4 2 2 . . . 2 1 . . 1 . . . 1 . . . . . . . 1 . . . . 1 . . 2 . 2 Worker 19 | . 3 . 1 . . 1 . 1 . . . . 1 . . . . . . 1 . . . 4 1 . . . . . . 1 1 4 Builder 10 | . . 2 3 . . 2 . . . . . . . . . . . . . . . . . 1 1 . . . . . . . 1 . Tunneler 1 | . . . . . . . . . . . . . . . . . . . . . . . . 1 . . . . . . . . . . Hauler 13 | . 2 . 2 . . . 3 1 . . . . 1 . . . . . . . . . . . . . . . . . . . 4 . Recycler 13 | 1 3 1 1 . . 1 1 5 . . . . . . . . . . . . . . . . . . . . . . . . . . Minesweeper 5 | . . . . . . . . . . . . 2 . . . 2 . . . . . . . . . . . . 1 . . . . . Operator 3 | . 1 . . . . . 1 . . . . . . . . . . . . . . . . . 1 . . . . . . . . . Watcher 9 | . 2 . 2 . . . 2 . . . . . . . . . . . . . . 1 . . . . . . . . . 2 . . Swarmer 94 | . 3 6 9 10 . 11 3 3 6 . . . 3 . 4 8 . . 4 4 . . . . 4 . . . . . . . 4 12 Grunt 92 | . 8 2 13 5 . 4 7 9 . 3 . 2 . . 2 8 2 . 1 . 3 . . 1 3 1 2 . . 2 . 3 7 4 Brawler 5 | . . . . 1 . 2 . 1 . 1 . . . . . . . . . . . . . . . . . . . . . . . . Duelist 6 | . . . 1 2 . . 1 . . . . . . . . . . . . . 1 . . . . . . . . . . . 1 . Protector 1 | . . . . 1 . . . . . . . . . . . . . . . . . . . . . . . . . . . . . . Researcher 1 | . . . . . . . . . . . . . . . . . . . . . . . . . . . . . . . . 1 . . Sentry 35 | . . . 5 . . . 8 4 . . . . . . 1 . 1 . . 2 3 . . . 1 . 1 . . 3 1 . 2 3 Demolisher 2 | . . 2 . . . . . . . . . . . . . . . . . . . . . . . . . . . . . . . . Hunter 16 | . . . . . . . . 1 . 1 . . . . . 3 . . 1 3 . . . . 1 . . . 2 2 . . 1 1 Programmer 15 | . . . . . . . . 1 . . . . . . . . . . 2 2 . . . . 2 . . . . . . 4 4 . Behemoth 1 | . . . . . . . . . . . . . . . . . . . . . . . . . . . . . 1 . . . . . Cetus Guard 2 | . . . . . . . . . . . . . . . . . . . . . . 2 . . . . . . . . . . . . Striker 1 | . . . . . . . . . . . . . . . . . . . . . . . . . . . . . . . . . . 1 Executioner 1 | . . . . . . . . . . . . . . . . . . . . . . . . . . . . . . . . . . 1 Protovariant X 1 | . . . . . . . . . . . . . . . . . . . . . . . . . . . . . . . . 1 . . Zionite 1 | . . 1 . . . . . . . . . . . . . . . . . . . . . . . . . . . . . . . . Z-Courier 1 | . . . . . . . . . . . . . . . . . . . . . . . . . . . . . . . . . 1 . Tinkerer 1 | . . . . . . . . . . . . . . . . 1 . . . . . . . . . . . . . . . . . . Assembled 15 | . . 15 . . . . . . . . . . . . . . . . . . . . . . . . . . . . . . . . Thug 3 | . . . . . . . . . 2 . . . . . . . . . . . 1 . . . . . . . . . . . . . Butcher 3 | . . . . . . . . . 3 . . . . . . . . . . . . . . . . . . . . . . . . . Guerrilla 1 | . . . . . . . . . . . . . . . . . . . . . . . . 1 . . . . . . . . . . Mutant 2 | . . . . . . . . . 1 . . . . . . . . . . . . . . . . 1 . . . . . . . . Best Kill Streak 11 | 1 6 11 6 4 . 10 6 6 3 4 . 2 3 . 4 4 2 . 4 4 2 3 . 6 5 1 2 . 1 4 1 3 9 8 Combat Bots Only 11 | . 3 11 4 4 . 7 5 4 3 4 . 2 3 . 4 4 2 . 4 4 3 2 . 1 4 1 2 . 1 4 1 3 9 7 Max Kills in Single Turn 6 | 1 3 2 2 2 . 3 2 4 2 1 . 1 2 . 3 4 1 . 3 1 1 1 . 6 3 1 2 . 1 1 1 1 6 4 Gunslinging 1 | . . . . 1 . . . . . . . . . . . . . . . . . . . . . . . . . . . . . . Exploded 6 | . 2 2 2 2 . 3 2 3 2 1 . . 2 . 3 4 1 . 3 . 1 . . . 3 1 2 . . . . 1 6 4 Melee 1 | . . . 1 . . . . . 1 . . . . . . . . . . 1 . . . . . . . . . . 1 1 1 1 Uniques/NPCs Destroyed . | . . . . . . . . . . . . . . . . . . . . . . . . . . . . . . . . . . . Combat | -11 -10 -10 -9 -9 -9 -8 -8 -7 -7 -7 -7 -6 -6 -6 -6 -6 -6 -6 -5 -5 -5 -5 -5 -5 -4 -4 -4 -4 -3 -3 -2 -2 -1 -1 -------- Run | Scr Mat Min Mat Min Exi Min Mat Fac Low Low Dat Pro Fac Was Fac Low Low Zio Pro Fac Ext Cet Arc Hub Fac Upp Upp War Pro Res Res Tes Acc Com Damage Taken 20843 | . 425 806 1193 354 . 370 963 1264 949 62 . 342 97 . 440 113 129 . 87 987 1046 70 182 217 524 129 24 . 541 512 248 586 1897 6286 Core 2960 | . 61 101 109 37 . 17 106 185 289 13 . . 26 . 22 . . . 19 91 45 . . . 34 43 . . 76 30 24 24 141 1467 Absorbed by Shields 312 | . . . . . . . . . . . . . . . . . . . . . 28 67 . . . . . . 136 81 . . . . Core Remaining (%) 76 | 100 . 35 . . . 59 80 . . . . 30 . . . . . . 92 . . . . 86 . . . . 86 97 . 96 . . Volleys Fired 766 | 7 39 44 72 25 . 27 65 51 27 10 . 27 10 . 15 47 18 . 20 26 46 6 5 9 41 12 18 . 22 19 . 31 14 13 Largest 2 | 2 2 2 2 2 . 2 2 2 2 2 . 2 2 . 2 2 2 . 1 2 2 1 2 2 2 1 2 . 2 2 . 2 1 1 Hottest 300 | 40 40 40 94 90 . 90 108 136 136 136 . 136 136 . 136 126 126 . 80 138 138 240 150 150 150 90 150 . 150 150 . 240 200 300 Shots Fired 1122 | 14 67 66 100 46 . 37 118 97 47 13 . 30 14 . 24 49 21 . 20 42 63 6 8 13 61 12 20 . 42 31 . 33 14 14 Gun 481 | 14 56 44 48 44 . 23 100 52 . . . 18 . . 7 25 . . . . . 1 . 3 11 9 11 . . . . 13 . 2 Cannon 449 | . . . 43 . . . 17 41 42 7 . 6 10 . 13 7 11 . 8 40 34 . 8 9 43 . 5 . 42 27 . 17 11 8 Launcher 163 | . 11 22 9 2 . 14 1 4 5 6 . 6 4 . 4 17 10 . 12 2 2 5 . 1 5 3 4 . . 4 . 3 3 4 Special 29 | . . . . . . . . . . . . . . . . . . . . . 27 . . . 2 . . . . . . . . . Kinetic 327 | 14 56 44 56 . . 2 90 52 . . . . . . 6 . . . . . . . . . . . . . . . . 5 . 2 Thermal 171 | . . . 15 . . . . 26 38 6 . 6 10 . 8 . 5 . . . . 1 . 3 11 5 11 . . . . 13 6 7 Explosive 132 | . 11 22 9 2 . 14 1 4 2 . . . 4 . . 17 10 . 12 2 2 . . 1 5 3 4 . . . . . 3 4 Electromagnetic 462 | . . . 20 44 . 21 27 15 7 7 . 24 . . 10 32 6 . 8 40 34 5 8 9 43 4 5 . 42 31 . 15 5 . Entropic 1 | . . . . . . . . . . . . . . . . . . . . . . . . . . . . . . . . . . 1 Robot Hit Streak 30 | 8 22 9 30 8 . 8 25 27 17 18 . 13 3 . 13 14 4 . 1 6 14 . 8 4 5 13 14 . 8 5 . 5 4 5 Robot Miss Streak 5 | 1 2 2 5 5 . 2 2 1 1 2 . 2 4 . 3 2 1 . 1 2 1 . 2 2 4 1 2 . 3 2 . 3 2 2 Penetration Max 1 | . . . . . . . . . . . . . . . 1 . . . . . . . . . . . . . . . . . . . Secondary Targets 5 | . . 2 . 3 . . . . . . . . . . . . . . . . . . . . . . . . . . . . . . Max Gunslinging Chain 1 | . . 1 . 1 . . . . . . . . . . . . . . . . . . . . . . . . . . . . . . Shots Hit Robots 939 | 13 54 39 89 39 . 23 101 79 37 6 . 25 5 . 19 29 5 . 5 38 61 . 4 6 30 4 3 . 28 16 9 41 60 71 Core Hits 656 | 3 41 57 70 32 . 33 49 42 21 6 . 14 11 . 9 30 7 . 14 12 20 6 2 11 15 12 9 . 6 7 3 22 41 51 Critical Hits 27 | . 1 . . . . . 1 4 2 1 . 1 . . 1 . 1 . . . 1 . . . . . . . 1 . 1 4 1 7 Critical Kills 7 | . . . . . . . . 1 1 1 . . . . . . . . . . . . . . . . . . . . . 1 1 2 Critical Parts Destroyed 19 | . 1 . . . . . 1 3 1 . . 1 . . 1 . 1 . . . . . . . . . . . 1 . 1 3 . 5 Melee Attacks 275 | . . . 2 . . . . 1 . . . . 4 . . 5 . . 1 20 9 . . . 2 . . . . . 10 53 70 98 Impact 10 | . . . . . . . . . . . . . . . . . . . . . . . . . . . . . . . . . 3 7 Slashing 250 | . . . 2 . . . . 1 . . . . 4 . . . . . 1 20 9 . . . 2 . . . . . 10 53 66 82 Piercing 15 | . . . . . . . . . . . . . . . . 5 . . . . . . . . . . . . . . . . 1 9 Sneak Attacks 19 | . . . 2 . . . . . . . . . . . . . . . . . . . . . . . . . . . . 3 9 5 Combat Hostiles 3 | . . . 2 . . . . . . . . . . . . . . . . . . . . . . . . . . . . . 1 . Follow-up Attacks 44 | . . . . . . . . . . . . . . . . . . . . . . . . . . . . . . . 3 10 9 22 Damage Inflicted 47053 | 101 1181 1663 2653 1038 . 1499 1873 2587 1048 503 . 656 373 . 529 3064 619 . 1293 1319 1668 440 249 1099 1517 445 503 . 663 867 389 1974 6965 8275 Guns 5339 | 101 399 340 641 464 . 293 1393 840 . . . 159 . . 158 195 . . . . . . . . 217 118 . . . . . . . 21 Cannons 9871 | . . . 790 . . . 301 866 698 53 . 82 61 . 204 174 108 . 104 889 700 . 102 183 857 . 115 . 663 533 . 273 1027 1088 Explosions 22578 | . 782 1323 1012 537 . 1177 152 870 343 450 . 415 312 . 167 2695 511 . 1189 49 661 440 147 916 443 327 388 . . 334 . 266 2844 3828 Melee 9154 | . . . 210 . . . . . . . . . . . . . . . . 381 307 . . . . . . . . . 389 1435 3094 3338 Ramming 111 | . . . . 37 . 29 27 11 7 . . . . . . . . . . . . . . . . . . . . . . . . . Kinetic 4019 | 101 399 340 877 . . 22 1214 840 . . . . . . 149 . . . . . . . . . . . . . . . . 56 . 21 Thermal 7570 | . . . 244 262 . 206 63 665 599 67 . 132 61 . 136 121 . . 68 . 229 . 147 . 217 . . . . . . . 1916 2437 Explosive 15359 | . 782 1323 950 275 . 971 89 772 186 . . . 312 . . 2574 511 . 1121 49 432 . . 19 443 327 388 . . . . . 1815 2020 Electromagnetic 10381 | . . . 372 464 . 271 480 299 256 436 . 524 . . 244 369 108 . 104 889 700 440 102 1080 857 118 115 . 663 867 . 483 140 . Impact 149 | . . . . . . . . . . . . . . . . . . . . . . . . . . . . . . . . . 25 124 Slashing 8892 | . . . 210 . . . . . . . . . . . . . . . . 381 307 . . . . . . . . . 389 1435 3069 3101 Piercing 113 | . . . . . . . . . . . . . . . . . . . . . . . . . . . . . . . . . . 113 Entropic 459 | . . . . . . . . . . . . . . . . . . . . . . . . . . . . . . . . . . 459 Highest Corruption 10 | . . . . . . . . 1 1 1 1 1 . 6 6 . . . . 4 2 . . 1 1 1 1 1 . . . 5 10 9 Average Corruption 2 | . . . . . . . . 1 1 1 1 1 . 6 4 . . . . 2 1 . . 1 1 1 1 1 . . . 1 8 3 Corruption Purged 20 | . . . . . . . . . . . . . . . 6 . . . . 3 2 . . . . . . . . . . . 3 6 Effects 73 | . . . . . . . . 2 4 . . 3 . . 8 . . . . 3 1 . . . . 3 3 . . . . 4 20 22 Message Errors 22 | . . . . . . . . 2 3 . . 3 . . 2 . . . . . . . . . . 1 2 . . . . 1 4 4 Matter Fused 8 | . . . . . . . . . . . . . . . 3 . . . . . . . . . . . . . . . . . 2 3 Heat Flow Errors 8 | . . . . . . . . . . . . . . . . . . . . . . . . . . . . . . . . . 3 5 Energy Discharges 7 | . . . . . . . . . . . . . . . . . . . . 2 . . . . . 1 . . . . . . 3 1 Data Loss (minor) 11 | . . . . . . . . . 1 . . . . . . . . . . . 1 . . . . 1 1 . . . . 1 2 4 Data Loss (major) 2 | . . . . . . . . . . . . . . . . . . . . . . . . . . . . . . . . . 2 . Misfires 2 | . . . . . . . . . . . . . . . 1 . . . . . . . . . . . . . . . . . . 1 Targeting Errors 13 | . . . . . . . . . . . . . . . 2 . . . . 1 . . . . . . . . . . . 2 4 4 Overload Shots 4 | . . . . . . . . . . . . . . . . . . . . . . 1 . . . . . . . . . 3 . . Overflow Damage 3074 | . 4 45 118 4 . 69 . 42 . 16 . 23 . . . 375 8 . 31 14 31 51 . 25 128 22 . . . . . 143 1456 469 Projectiles 597 | . . . . . . . . 15 . . . . . . . 9 . . 8 5 . . . . 73 . . . . . . . 476 11 Explosions 1596 | . 4 45 53 4 . 69 . 27 . 16 . 23 . . . 366 8 . 23 . 31 51 . 25 55 22 . . . . . . 695 79 Melee 881 | . . . 65 . . . . . . . . . . . . . . . . 9 . . . . . . . . . . . 143 285 379 Knockbacks 21 | . . . 21 . . . . . . . . . . . . . . . . . . . . . . . . . . . . . . . Impact . | . . . . . . . . . . . . . . . . . . . . . . . . . . . . . . . . . . . Kinetic 21 | . . . 21 . . . . . . . . . . . . . . . . . . . . . . . . . . . . . . . Secondary . | . . . . . . . . . . . . . . . . . . . . . . . . . . . . . . . . . . . Self-Inflicted Damage 686 | . 30 72 199 57 . 20 38 . . . . 21 25 . 8 . 34 . . . . . . . 29 . . . . . . . . 153 Shots 26 | . 1 4 7 3 . 2 2 . . . . 1 1 . 1 . 1 . . . . . . . 1 . . . . . . . . 2 Rammed 9 | . . . 1 3 . 2 2 . 1 . . . . . . . . . . . . . . . . . . . . . . . . . Targets Rammed 11 | . . . 1 3 . 2 2 1 2 . . . . . . . . . . . . . . . . . . . . . . . . . Kicked . | . . . . . . . . . . . . . . . . . . . . . . . . . . . . . . . . . . . Crushed 2 | . . . . . . . . 1 1 . . . . . . . . . . . . . . . . . . . . . . . . . Highest Temperature 353 | . 34 22 138 213 . 104 234 216 353 30 . 55 246 . 326 188 220 . 182 237 292 184 121 102 327 50 36 . 270 156 . 101 286 322 Average Temperature 70 | . 7 2 32 70 . 35 84 64 165 12 . 20 39 . 79 55 94 . 37 77 96 98 64 34 105 22 11 . 117 56 . 55 155 114 Received Heat Transfer 2884 | . 159 44 246 66 . 90 378 483 153 36 . 108 9 . 78 9 36 . . 84 270 . 9 36 48 49 . . 16 36 54 18 153 216 Effects 9 | . . . . . . . . . 2 . . . . . 2 . . . . . . . . . 2 . . . 3 . . . . . Interference 9 | . . . . . . . . . 2 . . . . . 2 . . . . . . . . . 2 . . . 3 . . . . . Siege Activations . | . . . . . . . . . . . . . . . . . . . . . . . . . . . . . . . . . . . Robots Corrupted 43 | . . . 2 . . . 1 1 . 3 . 3 . . 2 2 1 . . 4 2 3 . 1 5 1 . . 3 6 . 2 1 . Combat Hostiles 38 | . . . 2 . . . . 1 . 3 . 2 . . 2 1 1 . . 4 2 2 . . 5 1 . . 3 6 . 2 1 . Parts Fried 80 | . . . 4 2 . . 6 1 4 1 . 4 . . 2 2 . . . 12 2 3 . 4 7 2 . . 6 9 . 7 2 . Impact Corruptions 1 | . . . . . . . . . . . . . . . . . . . . . . . . . . . . . . . . . . 1 Robots Melted . | . . . . . . . . . . . . . . . . . . . . . . . . . . . . . . . . . . . Combat Hostiles . | . . . . . . . . . . . . . . . . . . . . . . . . . . . . . . . . . . . Parts Melted 9 | . . . 1 . . . . 2 5 . . . . . . . . . . . . . . . . . . . . . . . . 1 Heat Transferred 7523 | . . . 618 300 . 150 100 1062 1073 87 . 248 111 . 272 150 . . 50 . 200 . 100 . 259 . . . . . . . 920 1823 Parts Sabotaged . | . . . . . . . . . . . . . . . . . . . . . . . . . . . . . . . . . . . Parts Stolen . | . . . . . . . . . . . . . . . . . . . . . . . . . . . . . . . . . . . Parts Stripped . | . . . . . . . . . . . . . . . . . . . . . . . . . . . . . . . . . . . Power Chain Reactions 25 | . . . 1 6 . 3 1 1 1 1 . 1 . . 3 3 . . 1 . 2 . 1 . . . . . . . . . . . Missiles Intercepted 17 | . . . . . . . . . . . . . . . . . . . . . . . . . . . . . . . . . . 17 Alert | -11 -10 -10 -9 -9 -9 -8 -8 -7 -7 -7 -7 -6 -6 -6 -6 -6 -6 -6 -5 -5 -5 -5 -5 -5 -4 -4 -4 -4 -3 -3 -2 -2 -1 -1 ------- Run | Scr Mat Min Mat Min Exi Min Mat Fac Low Low Dat Pro Fac Was Fac Low Low Zio Pro Fac Ext Cet Arc Hub Fac Upp Upp War Pro Res Res Tes Acc Com Peak Influence 3140 | 5 165 202 469 375 . 323 312 830 . . . . 746 264 312 . . . . 474 552 457 458 827 1089 . . . . 451 313 392 856 3140 Initial 547 | . 3 7 . 180 . . 23 81 . . . . 55 234 184 . . . . 6 177 246 182 37 375 . . . . 54 253 175 119 547 Average 337 | . 64 34 212 252 . 199 94 314 . . . . 447 247 218 . . . . 144 389 417 327 312 572 . . . . 353 281 290 531 1802 Maximum Alert Level 5 | . . 1 2 1 . 1 1 3 . . . . 3 1 1 . . . . 2 2 2 2 3 3 . . . . 2 1 1 3 5 Low Security (%) 41 | 100 100 92 44 17 . 52 89 58 . . . . 33 . 31 . . . . 63 4 . 10 41 . . . . . 12 . 3 22 . Level 1 31 | . . 7 42 82 . 47 10 14 . . . . 1 100 68 . . . . 32 35 10 46 32 14 . . . . 34 100 96 . . Level 2 17 | . . . 13 . . . . 6 . . . . 41 . . . . . . 3 60 89 42 21 69 . . . . 53 . . 61 6 Level 3 5 | . . . . . . . . 20 . . . . 24 . . . . . . . . . . 5 16 . . . . . . . 15 24 Level 4 . | . . . . . . . . . . . . . . . . . . . . . . . . . . . . . . . . . . 15 Level 5 . | . . . . . . . . . . . . . . . . . . . . . . . . . . . . . . . . . . 2 High Security 2 | . . . . . . . . . . . . . . . . . . . . . . . . . . . . . . . . . . 51 Max Security . | . . . . . . . . . . . . . . . . . . . . . . . . . . . . . . . . . . . Squads Dispatched 63 | . 2 . 6 1 . . 3 5 . . . . 6 . 1 . . . . 4 . . . 1 6 . . . . 6 . 2 5 15 Investigation 17 | . 1 . 5 . . . 1 3 . . . . . . 1 . . . . 1 . . . . 2 . . . . 2 . . 1 . Extermination 10 | . . . . . . . . 1 . . . . 1 . . . . . . 2 . . . 1 1 . . . . . . 2 2 . Reinforcement 10 | . 1 . 1 . . . 1 . . . . . 3 . . . . . . 1 . . . . 1 . . . . . . . 1 1 Assault 22 | . . . . 1 . . . 1 . . . . 2 . . . . . . . . . . . 2 . . . . 1 . . 1 14 Garrison 4 | . . . . . . . 1 . . . . . . . . . . . . . . . . . . . . . . 3 . . . . Intercept . | . . . . . . . . . . . . . . . . . . . . . . . . . . . . . . . . . . . Construction Impeded 1 | . . . . . . . . . . . . . . . . . . . . 1 . . . . . . . . . . . . . . Haulers Reinforced 1 | . . . . . . . . . . . . . . . . . . . . . . . . . . . . . . . . . 1 . Stealth | -11 -10 -10 -9 -9 -9 -8 -8 -7 -7 -7 -7 -6 -6 -6 -6 -6 -6 -6 -5 -5 -5 -5 -5 -5 -4 -4 -4 -4 -3 -3 -2 -2 -1 -1 --------- Run | Scr Mat Min Mat Min Exi Min Mat Fac Low Low Dat Pro Fac Was Fac Low Low Zio Pro Fac Ext Cet Arc Hub Fac Upp Upp War Pro Res Res Tes Acc Com Distress Signals 25 | . 2 . 3 1 . . 1 . . . . . . . 1 . . . . 2 4 1 . 2 3 . . . . 3 . . 1 1 Communications Jammed 16 | . . . . . . . . . . . . . . . . . . . . . . . . . . . . . . . . 10 1 5 Distress Signals 16 | . . . . . . . . . . . . . . . . . . . . . . . . . . . . . . . . 10 1 5 Times Spotted 546 | . 22 30 50 22 . 20 36 23 16 5 . 10 16 6 10 11 3 . 12 24 21 5 4 16 33 4 2 4 6 14 1 12 31 77 Peak Tracking Total 20 | . 4 9 7 5 . 4 5 3 5 4 . 4 5 6 5 4 3 . 5 7 8 5 2 7 10 3 3 5 2 6 1 3 9 20 Tactical Retreats 42 | . 1 3 13 1 . 1 1 . 1 1 . . 1 . 1 . . . 2 1 1 . . 1 1 . . . 2 1 . . 4 5 Traps | -11 -10 -10 -9 -9 -9 -8 -8 -7 -7 -7 -7 -6 -6 -6 -6 -6 -6 -6 -5 -5 -5 -5 -5 -5 -4 -4 -4 -4 -3 -3 -2 -2 -1 -1 ------- Run | Scr Mat Min Mat Min Exi Min Mat Fac Low Low Dat Pro Fac Was Fac Low Low Zio Pro Fac Ext Cet Arc Hub Fac Upp Upp War Pro Res Res Tes Acc Com Traps Triggered 14 | . . . 1 . . . 1 1 . . . . 1 . 2 . . . . . 6 . . . . . . . . 1 . . 1 . Indirectly 2 | . . . . . . . . . . . . . . . 2 . . . . . . . . . . . . . . . . . . . Trap Hack Attempts 29 | . . . . . . . 29 . . . . . . . . . . . . . . . . . . . . . . . . . . . Triggered . | . . . . . . . . . . . . . . . . . . . . . . . . . . . . . . . . . . . Disarmed 4 | . . . 4 . . . . . . . . . . . . . . . . . . . . . . . . . . . . . . . Reprogrammed 12 | . 6 . . . . . 6 . . . . . . . . . . . . . . . . . . . . . . . . . . . Reused 7 | . 1 . . . . . 2 . . . . 1 . . 1 . . . . . . . . . . . . . 2 . . . . . Traps Extracted . | . . . . . . . . . . . . . . . . . . . . . . . . . . . . . . . . . . . Installed 11 | . . . . . . . . . . . . 1 . . 1 . . . . . . . . . . . . . 9 . . . . . Triggered 26 | . 1 . . . . . 2 . . 1 . 1 . . 1 4 . . . 1 . . . . 1 . . 12 2 . . . . . Exploded 2 | . . . . . . . 2 . . . . . . . . . . . . . . . . . . . . . . . . . . . Machines | -11 -10 -10 -9 -9 -9 -8 -8 -7 -7 -7 -7 -6 -6 -6 -6 -6 -6 -6 -5 -5 -5 -5 -5 -5 -4 -4 -4 -4 -3 -3 -2 -2 -1 -1 ---------- Run | Scr Mat Min Mat Min Exi Min Mat Fac Low Low Dat Pro Fac Was Fac Low Low Zio Pro Fac Ext Cet Arc Hub Fac Upp Upp War Pro Res Res Tes Acc Com Machines Disabled 57 | . 2 . 1 3 . . . 2 . . . . 1 . 1 1 . . . 4 3 2 4 9 9 . . . . 1 . 5 . 9 Max in Single Turn 7 | . 2 . 1 1 . . . 2 . . . . 1 . 1 1 . . . 1 1 1 1 7 3 . . . . 1 . 1 . 1 Garrison Access 3 | . . . . . . . . . . . . . . . . . . . . . . . . 1 1 . . . . 1 . . . . Network Hub 1 | . . . . . . . . . . . . . . . . . . . . . . . . 1 . . . . . . . . . . Machines Sabotaged . | . . . . . . . . . . . . . . . . . . . . . . . . . . . . . . . . . . . Garrisons Compromised . | . . . . . . . . . . . . . . . . . . . . . . . . . . . . . . . . . . . Overloaded Fab Kills . | . . . . . . . . . . . . . . . . . . . . . . . . . . . . . . . . . . . Fab Network Shutdowns 2 | . . . . . . . . 1 . . . . 1 . . . . . . . . . . . . . . . . . . . . . Hacking | -11 -10 -10 -9 -9 -9 -8 -8 -7 -7 -7 -7 -6 -6 -6 -6 -6 -6 -6 -5 -5 -5 -5 -5 -5 -4 -4 -4 -4 -3 -3 -2 -2 -1 -1 --------- Run | Scr Mat Min Mat Min Exi Min Mat Fac Low Low Dat Pro Fac Was Fac Low Low Zio Pro Fac Ext Cet Arc Hub Fac Upp Upp War Pro Res Res Tes Acc Com Machines Accessed 90 | . 5 1 6 . . . 12 8 . . 4 . 20 . 5 1 1 . . 4 . . . 1 6 . . 5 . 4 . 3 2 2 Terminals 35 | . 4 . 3 . . . 8 4 . . . . 14 . 1 1 . . . . . . . . . . . . . . . . . . Fabricators 10 | . . . . . . . . 2 . . . . 2 . 2 . . . . 2 . . . . 1 . . . . . . 1 . . Repair Stations 12 | . . . 1 . . . 2 . . . . . 2 . 1 . . . . 1 . . . . 1 . . . . . . 2 1 1 Recycling Units 10 | . 1 . 1 . . . 1 2 . . . . 2 . . . . . . . . . . . 1 . . . . 1 . . . 1 Scanalyzers 6 | . . . 1 . . . 1 . . . . . . . . . . . . 1 . . . . 2 . . . . 1 . . . . Garrison Access 6 | . . . . . . . . . . . . . . . 1 . . . . . . . . 1 1 . . . . 2 . . 1 . Total Hacks 306 | . 21 1 39 . . . 38 26 . . 31 . 50 . 13 1 1 . . 12 . . . 1 31 . . 9 . 13 . 12 3 4 Successful 189 | . 12 1 32 . . . 25 10 . . 31 . 22 . 6 1 1 . . 8 . . . 1 18 . . 9 . 4 . 6 . 2 Failed 117 | . 9 . 7 . . . 13 16 . . . . 28 . 7 . . . . 4 . . . . 13 . . . . 9 . 6 3 2 Catastrophic 18 | . . . 1 . . . 1 1 . . . . 4 . 2 . . . . 1 . . . . 1 . . . . 4 . 1 1 1 Database Lockouts . | . . . . . . . . . . . . . . . . . . . . . . . . . . . . . . . . . . . Manual 221 | . 11 . 12 . . . 25 14 . . . . 26 . 2 . . . . 13 42 4 . 12 8 . . 1 . 3 . 21 7 20 Terminals 114 | . 17 . 15 . . . 29 15 . . . . 35 . 2 1 . . . . . . . . . . . . . . . . . . Fabricators 36 | . . . . . . . . 8 . . . . 5 . 9 . . . . 5 . . . . 3 . . . . . . 6 . . Repair Stations 40 | . . . 8 . . . 5 . . . . . 6 . 1 . . . . 4 . . . . 6 . . . . . . 6 1 3 Recycling Units 19 | . 4 . 2 . . . 2 3 . . . . 4 . . . . . . . . . . . 2 . . . . 1 . . . 1 Scanalyzers 42 | . . . 14 . . . 2 . . . . . . . . . . . . 3 . . . . 17 . . . . 6 . . . . Garrison Access 13 | . . . . . . . . . . . . . . . 1 . . . . . . . . 1 3 . . . . 6 . . 2 . Terminal Hacks 81 | . 8 1 5 . . . 13 5 . . 31 . 7 . . 1 1 . . . . . . . . . . 9 . . . . . . Record 15 | . . . . . . . . . . . 11 . . . . 1 . . . . . . . . . . . 3 . . . . . . Part Schematic 15 | . 1 . . . . . . 1 . . 11 . 2 . . . . . . . . . . . . . . . . . . . . . Robot Schematic 6 | . . . . . . . . . . . 6 . . . . . . . . . . . . . . . . . . . . . . . Robot Analysis 5 | . 2 . 1 . . . 2 . . . . . . . . . . . . . . . . . . . . . . . . . . . Prototype ID Bank 11 | . 1 . . . . . 2 . . . 3 . 1 . . . . . . . . . . . . . . 4 . . . . . . Open Door 4 | . . 1 . . . . . . . . . . . . . . 1 . . . . . . . . . . 2 . . . . . . Branch Access Points 2 | . . . . . . . 1 1 . . . . . . . . . . . . . . . . . . . . . . . . . . Terminal Index 2 | . . . . . . . . 1 . . . . 1 . . . . . . . . . . . . . . . . . . . . . Fabricator Index 2 | . . . . . . . . 1 . . . . 1 . . . . . . . . . . . . . . . . . . . . . Recycling Unit Index 1 | . 1 . . . . . . . . . . . . . . . . . . . . . . . . . . . . . . . . . Unreport Threat 5 | . 2 . 1 . . . 2 . . . . . . . . . . . . . . . . . . . . . . . . . . . Locate Traps 3 | . . . 2 . . . 1 . . . . . . . . . . . . . . . . . . . . . . . . . . . Disarm Traps 1 | . . . 1 . . . . . . . . . . . . . . . . . . . . . . . . . . . . . . . Reprogram Traps 2 | . 1 . . . . . 1 . . . . . . . . . . . . . . . . . . . . . . . . . . . Recall Investigation 2 | . . . . . . . 1 1 . . . . . . . . . . . . . . . . . . . . . . . . . . Recall Assault 1 | . . . . . . . . . . . . . 1 . . . . . . . . . . . . . . . . . . . . . Hauler Manifests 1 | . . . . . . . 1 . . . . . . . . . . . . . . . . . . . . . . . . . . . Zone Layout 3 | . . . . . . . 2 . . . . . 1 . . . . . . . . . . . . . . . . . . . . . Fabricator Hacks 17 | . . . . . . . . 3 . . . . 3 . 5 . . . . 4 . . . . . . . . . . . 2 . . Load Schematic 9 | . . . . . . . . 2 . . . . 1 . 3 . . . . 2 . . . . . . . . . . . 1 . . Build 8 | . . . . . . . . 1 . . . . 2 . 2 . . . . 2 . . . . . . . . . . . 1 . . Repair Station Hacks 21 | . . . 7 . . . 1 . . . . . 4 . . . . . . 2 . . . . 2 . . . . . . 3 . 2 Scan Component 12 | . . . 4 . . . 1 . . . . . 2 . . . . . . 1 . . . . 1 . . . . . . 2 . 1 Repair 9 | . . . 3 . . . . . . . . . 2 . . . . . . 1 . . . . 1 . . . . . . 1 . 1 Recycling Unit Hacks 5 | . 1 . 1 . . . 1 1 . . . . 1 . . . . . . . . . . . . . . . . . . . . . Retrieve Components 5 | . 1 . 1 . . . 1 1 . . . . 1 . . . . . . . . . . . . . . . . . . . . . Scanalyzer 35 | . . . 14 . . . 2 . . . . . . . . . . . . 1 . . . . 15 . . . . 3 . . . . Insert Component 19 | . . . 6 . . . 1 . . . . . . . . . . . . 1 . . . . 8 . . . . 3 . . . . Analyze 16 | . . . 8 . . . 1 . . . . . . . . . . . . . . . . . 7 . . . . . . . . . Garrison Access Hacks 3 | . . . . . . . . . . . . . . . . . . . . . . . . 1 1 . . . . 1 . . . . Seal Access 3 | . . . . . . . . . . . . . . . . . . . . . . . . 1 1 . . . . 1 . . . . Unauthorized Hacks 27 | . 3 . 5 . . . 8 1 . . . . 7 . 1 . . . . 1 . . . . . . . . . . . 1 . . Terminals 21 | . 2 . 4 . . . 8 1 . . . . 5 . 1 . . . . . . . . . . . . . . . . . . . Track 6 | . . . 1 . . . 4 . . . . . 1 . . . . . . . . . . . . . . . . . . . . . Assimilate 1 | . . . . . . . . . . . . . 1 . . . . . . . . . . . . . . . . . . . . . Botnet 10 | . 2 . 2 . . . 2 1 . . . . 2 . 1 . . . . . . . . . . . . . . . . . . . Disrupt 3 | . . . 1 . . . 1 . . . . . 1 . . . . . . . . . . . . . . . . . . . . . Operators 1 | . . . . . . . 1 . . . . . . . . . . . . . . . . . . . . . . . . . . . Fabricators 4 | . . . . . . . . . . . . . 2 . . . . . . 1 . . . . . . . . . . . 1 . . Prioritize 1 | . . . . . . . . . . . . . . . . . . . . . . . . . . . . . . . . 1 . . Siphon 2 | . . . . . . . . . . . . . 1 . . . . . . 1 . . . . . . . . . . . . . . Haulers 1 | . . . . . . . . . . . . . 1 . . . . . . . . . . . . . . . . . . . . . Repair Stations . | . . . . . . . . . . . . . . . . . . . . . . . . . . . . . . . . . . . Recycling Units 2 | . 1 . 1 . . . . . . . . . . . . . . . . . . . . . . . . . . . . . . . Tunnel 2 | . 1 . 1 . . . . . . . . . . . . . . . . . . . . . . . . . . . . . . . Scanalyzers . | . . . . . . . . . . . . . . . . . . . . . . . . . . . . . . . . . . . Garrison Access . | . . . . . . . . . . . . . . . . . . . . . . . . . . . . . . . . . . . Data Cores Recovered . | . . . . . . . . . . . . . . . . . . . . . . . . . . . . . . . . . . . Used . | . . . . . . . . . . . . . . . . . . . . . . . . . . . . . . . . . . . Hacking Detections 70 | . 4 . 6 . . . 10 7 . . . . 18 . 5 1 . . . 4 . . . . 5 . . . . 3 . 3 2 2 Full Trace Events 15 | . 2 . 3 . . . 1 3 . . . . . . 1 . . . . 1 . . . . 2 . . . . 1 . . 1 . Feedback Events 2 | . . . . . . . . . . . . . . . . . . . . . . . . . 1 . . . . . . . 1 . Corruption 2 | . . . . . . . . . . . . . . . . . . . . . . . . . 1 . . . . . . . 1 . Feedback Blocked . | . . . . . . . . . . . . . . . . . . . . . . . . . . . . . . . . . . . Robot Schematics Acquired 20 | . . . . . . . . . . . 6 . . . . . . . . . 14 . . . . . . . . . . . . . Robots Built . | . . . . . . . . . . . . . . . . . . . . . . . . . . . . . . . . . . . Matter . | . . . . . . . . . . . . . . . . . . . . . . . . . . . . . . . . . . . Time . | . . . . . . . . . . . . . . . . . . . . . . . . . . . . . . . . . . . Total Robot Build Rating . | . . . . . . . . . . . . . . . . . . . . . . . . . . . . . . . . . . . Part Schematics Acquired 118 | . 1 . 6 . . . 1 1 . . 11 . 1 . . . . . . . 22 . . 14 7 . . . . . . 13 . 41 Parts Built 13 | . . . . . . . . 2 . . . . 4 . 2 . . . . 4 . . . . . . . . . . . 1 . . Matter 1650 | . . . . . . . . 190 . . . . 318 . 486 . . . . 371 . . . . . . . . . . . 285 . . Time 834 | . . . . . . . . 47 . . . . 212 . 211 . . . . 212 . . . . . . . . . . . 152 . . Total Part Build Rating 73 | . . . . . . . . 10 . . . . 24 . 10 . . . . 24 . . . . . . . . . . . 5 . . Parts Repaired 9 | . . . 3 . . . . . . . . . 2 . . . . . . 1 . . . . 1 . . . . . . 1 . 1 Time 346 | . . . 138 . . . . . . . . . 67 . . . . . . 25 . . . . 44 . . . . . . 54 . 18 Parts Recycled . | . . . . . . . . . . . . . . . . . . . . . . . . . . . . . . . . . . . Recycled Matter . | . . . . . . . . . . . . . . . . . . . . . . . . . . . . . . . . . . . Retrieved Matter . | . . . . . . . . . . . . . . . . . . . . . . . . . . . . . . . . . . . Retrieved Components 33 | . 10 . 9 . . . 1 10 . . . . 3 . . . . . . . . . . . . . . . . . . . . . Parts Scanalyzed 15 | . . . 6 . . . 1 . . . . . . . . . . . . 1 . . . . 6 . . . . 1 . . . . Part Schematics Acquired 14 | . . . 6 . . . 1 . . . . . . . . . . . . . . . . . 7 . . . . . . . . . Parts Damaged . | . . . . . . . . . . . . . . . . . . . . . . . . . . . . . . . . . . . Bothacking | -11 -10 -10 -9 -9 -9 -8 -8 -7 -7 -7 -7 -6 -6 -6 -6 -6 -6 -6 -5 -5 -5 -5 -5 -5 -4 -4 -4 -4 -3 -3 -2 -2 -1 -1 ------------ Run | Scr Mat Min Mat Min Exi Min Mat Fac Low Low Dat Pro Fac Was Fac Low Low Zio Pro Fac Ext Cet Arc Hub Fac Upp Upp War Pro Res Res Tes Acc Com Used RIF Installer . | . . . . . . . . . . . . . . . . . . . . . . . . . . . . . . . . . . . Robots Hacked . | . . . . . . . . . . . . . . . . . . . . . . . . . . . . . . . . . . . Non-combat . | . . . . . . . . . . . . . . . . . . . . . . . . . . . . . . . . . . . Combat . | . . . . . . . . . . . . . . . . . . . . . . . . . . . . . . . . . . . Robot Hacks Applied . | . . . . . . . . . . . . . . . . . . . . . . . . . . . . . . . . . . . Relay Couplers Released . | . . . . . . . . . . . . . . . . . . . . . . . . . . . . . . . . . . . Robots Rewired 24 | . . . . . . . . . 2 . . . 1 . 1 . . . . . 13 . . . . 3 . 4 . . . . . . Allies Hacked 5 | . . . . . . . . . . . . . . . . . . . . . . . . . 2 . . . . . . . 1 2 Hacks Repelled . | . . . . . . . . . . . . . . . . . . . . . . . . . . . . . . . . . . . Allies | -11 -10 -10 -9 -9 -9 -8 -8 -7 -7 -7 -7 -6 -6 -6 -6 -6 -6 -6 -5 -5 -5 -5 -5 -5 -4 -4 -4 -4 -3 -3 -2 -2 -1 -1 -------- Run | Scr Mat Min Mat Min Exi Min Mat Fac Low Low Dat Pro Fac Was Fac Low Low Zio Pro Fac Ext Cet Arc Hub Fac Upp Upp War Pro Res Res Tes Acc Com Total Allies 84 | . . 2 . 1 . . . . 2 . . 1 2 . 1 . . 4 . 5 25 7 . . 4 3 . 4 . . . . 2 21 Largest Group 16 | . . 2 1 1 . . . . 2 . . 1 2 . 1 1 1 5 5 4 11 16 11 10 3 3 3 7 6 6 . . 1 14 Highest-Rated Group 1689 | . . 43 28 31 . . . . 56 . . 94 135 . 19 19 19 171 171 189 536 988 814 658 321 138 138 349 300 300 . . 33 1689 Highest-Rated Ally 268 | . . 31 28 31 . . . . 31 . . 94 94 . 19 19 19 39 39 85 156 156 156 94 157 46 46 60 60 60 . . 33 268 Zionite Dispatches 7 | . . . . . . . . . . . . . . . . . . . . 2 1 1 . . 1 . . . . . . . 2 . Heavy 3 | . . . . . . . . . . . . . . . . . . . . 1 1 1 . . . . . . . . . . . . Fire 1 | . . . . . . . . . . . . . . . . . . . . 1 . . . . . . . . . . . . . . Hero 1 | . . . . . . . . . . . . . . . . . . . . . . . . . 1 . . . . . . . . . Melee Resupply 1 | . . . . . . . . . . . . . . . . . . . . . . . . . . . . . . . . . 1 . Zionite Resupply 1 | . . . . . . . . . . . . . . . . . . . . . . . . . . . . . . . . . 1 . Total Orders 60 | . . . . . . . . . . . . . . . 4 5 6 2 9 7 10 5 . 1 3 . 2 2 2 . . . 2 . STAY 33 | . . . . . . . . . . . . . . . 2 4 2 1 5 4 6 4 . 1 1 . 1 1 1 . . . . . FOLLOW 21 | . . . . . . . . . . . . . . . 1 1 3 1 4 3 3 1 . . 1 . 1 1 1 . . . . . AID 3 | . . . . . . . . . . . . . . . 1 . 1 . . . 1 . . . . . . . . . . . . . DROP 2 | . . . . . . . . . . . . . . . . . . . . . . . . . . . . . . . . . 2 . RETURN 1 | . . . . . . . . . . . . . . . . . . . . . . . . . 1 . . . . . . . . . Ally Attacks 657 | . . 2 1 11 . . . . 2 . . 15 18 . . . . . 29 18 136 25 23 51 45 5 3 5 20 35 . . . 213 Total Damage 30072 | . . 43 . 156 . . . . 42 . . 482 733 . . . . . 499 1079 3634 747 989 2131 2876 131 68 195 390 907 . . . 14970 Kills 148 | . . 1 . 2 . . . . 1 . . 8 7 . . . . . 3 4 21 5 4 19 13 2 1 1 1 7 . . . 48 Allies Corrupted 8 | . . . . . . . . . . . . . . . . . . . . . . . . 3 . . . . . . . . . 5 Allies Melted . | . . . . . . . . . . . . . . . . . . . . . . . . . . . . . . . . . . . Intel | -11 -10 -10 -9 -9 -9 -8 -8 -7 -7 -7 -7 -6 -6 -6 -6 -6 -6 -6 -5 -5 -5 -5 -5 -5 -4 -4 -4 -4 -3 -3 -2 -2 -1 -1 ------- Run | Scr Mat Min Mat Min Exi Min Mat Fac Low Low Dat Pro Fac Was Fac Low Low Zio Pro Fac Ext Cet Arc Hub Fac Upp Upp War Pro Res Res Tes Acc Com Robot Analysis Total 5 | . 2 . 1 . . . 2 . . . . . . . . . . . . . . . . . . . . . . . . . . . Derelict Logs Recovered 14 | . . 1 . 2 . . . . . 1 . 2 . . . 2 1 . 1 . . . . . . 2 2 . . . . . . . Drone Launches 1 | . . . . . . . . . . . . . . . . . . . . . . . . . 1 . . . . . . . . . Drone Recoveries 1 | . . . . . . . . . . . . . . . . . . . . . . . . . 1 . . . . . . . . . Zionite Intel Received 29 | . . . . . . . . . . . . . . . . . . . . 2 12 . . 3 1 . . . . . . 5 . 6 Branch Access 1 | . . . . . . . . . . . . . . . . . . . . . 1 . . . . . . . . . . . . . Emergency Access 1 | . . . . . . . . . . . . . . . . . . . . . 1 . . . . . . . . . . . . . Component Stockpiles 2 | . . . . . . . . . . . . . . . . . . . . . 1 . . 1 . . . . . . . . . . Prototype Stockpiles 3 | . . . . . . . . . . . . . . . . . . . . 1 1 . . . . . . . . . . 1 . . Component Schematics 5 | . . . . . . . . . . . . . . . . . . . . . . . . 1 . . . . . . . 1 . 3 Prototype Schematics 2 | . . . . . . . . . . . . . . . . . . . . . 2 . . . . . . . . . . . . . Unaware Schematics 3 | . . . . . . . . . . . . . . . . . . . . . 3 . . . . . . . . . . . . . Unaware Analyses 3 | . . . . . . . . . . . . . . . . . . . . . . . . 1 . . . . . . . 1 . 1 Trap Installations 2 | . . . . . . . . . . . . . . . . . . . . . . . . . 1 . . . . . . . . 1 Active Terminals 2 | . . . . . . . . . . . . . . . . . . . . . 1 . . . . . . . . . . 1 . . Active Garrisons 3 | . . . . . . . . . . . . . . . . . . . . 1 . . . . . . . . . . . 1 . 1 Depthwide Sectors/0 1 | . . . . . . . . . . . . . . . . . . . . . 1 . . . . . . . . . . . . . Depthwide Sectors/-1 1 | . . . . . . . . . . . . . . . . . . . . . 1 . . . . . . . . . . . . . Exploration | -11 -10 -10 -9 -9 -9 -8 -8 -7 -7 -7 -7 -6 -6 -6 -6 -6 -6 -6 -5 -5 -5 -5 -5 -5 -4 -4 -4 -4 -3 -3 -2 -2 -1 -1 ------------- Run | Scr Mat Min Mat Min Exi Min Mat Fac Low Low Dat Pro Fac Was Fac Low Low Zio Pro Fac Ext Cet Arc Hub Fac Upp Upp War Pro Res Res Tes Acc Com Turns Passed 28566 | 133 956 1197 1796 1246 622 1333 1357 1231 985 420 50 464 890 68 674 2193 792 1120 1020 1221 1131 236 891 454 620 652 597 578 561 398 122 810 760 988 Spaces Moved 21459 | 65 453 512 616 566 310 611 538 584 711 571 84 534 1025 89 653 1603 566 943 647 1068 1178 136 96 467 518 872 803 731 595 480 140 811 697 1186 Core 3 | 3 . . . . . . . . . . . . . . . . . . . . . . . . . . . . . . . . . . Treads 4649 | 62 453 512 616 566 310 611 538 584 397 . . . . . . . . . . . . . . . . . . . . . . . . . Legs . | . . . . . . . . . . . . . . . . . . . . . . . . . . . . . . . . . . . Wheels . | . . . . . . . . . . . . . . . . . . . . . . . . . . . . . . . . . . . Hover 16807 | . . . . . . . . . 314 571 84 534 1025 89 653 1603 566 943 647 1068 1178 136 96 467 518 872 803 731 595 480 140 811 697 1186 Flight . | . . . . . . . . . . . . . . . . . . . . . . . . . . . . . . . . . . . Fastest Speed 37 | 50 160 180 180 200 200 180 175 162 60 60 60 60 58 64 64 64 64 64 64 64 64 64 64 64 58 58 58 52 52 50 50 37 44 51 Average Speed 95 | 154 170 180 186 200 200 199 177 170 116 60 60 60 63 64 64 119 118 102 108 68 64 65 64 64 63 58 58 55 58 50 50 49 50 53 Slowest Speed 200 | 160 180 180 200 200 200 200 183 183 180 60 60 60 68 64 64 138 138 138 138 138 64 142 64 64 64 58 58 58 114 58 50 113 113 133 Overloaded Moves 35 | . . . . . . . . . . . . . . . . . . . . . . . . . . . . . . . . 13 22 . Propulsion Burnouts . | . . . . . . . . . . . . . . . . . . . . . . . . . . . . . . . . . . . Robots Hopped . | . . . . . . . . . . . . . . . . . . . . . . . . . . . . . . . . . . . Cave-ins Triggered 1 | . . . . . . . . . . . . . . . . . . . . . . . . . . . . . . . . . 1 . Exploration Rate (%) 57 | 5 76 99 46 98 55 98 56 16 77 68 69 74 29 83 14 98 60 89 69 17 84 56 73 40 16 92 86 93 50 15 5 57 20 45 Regions Visited 34 Branch Regions 22 Pre-discovered Areas 22 | . 1 . 1 . . . . . . . 1 . . . . . . 1 . . 15 . . . . 2 1 . . . . . . . Known Exits Taken 26 | . 1 . . . . 1 1 1 1 1 1 1 . . 1 1 1 1 1 1 1 1 1 1 1 1 1 1 1 1 1 1 . . Unknown Exits Taken 6 | 1 . 1 1 1 1 . . . . . . . . . . . . . . . . . . . . . . . . . . . 1 . Scrap Searched 35 | . . 2 . 2 . 3 . . 4 3 . 2 . . . 3 . 5 2 . . . . . . 5 2 . 2 . . . . . Spaces Dug 222 | . . 30 22 11 . 21 . 1 . . . . 12 . . 4 5 . 1 34 1 . . 3 26 3 8 . . . . 10 22 8 Terrain Destroyed 1678 | . 52 128 80 49 . 100 8 24 9 3 . 5 24 . 4 287 140 . 123 34 11 . 8 121 57 47 66 . . . . 10 128 160 Melee 40 | . . . . . . . . 1 . . . . 4 . . 4 . . 1 4 1 . . . 2 . . . . . . 8 7 8 Projectile 28 | . . . . . . 1 . . . . . . . . . . 5 . . . . . . 3 2 3 8 . . . . 2 2 2 AOE 1610 | . 52 128 80 49 . 99 8 23 9 3 . 5 20 . 4 283 135 . 122 30 10 . 8 118 53 44 58 . . . . . 119 150 Terrain Rammed . | . . . . . . . . . . . . . . . . . . . . . . . . . . . . . . . . . . . Walls Destroyed . | . . . . . . . . . . . . . . . . . . . . . . . . . . . . . . . . . . . Machines Disabled . | . . . . . . . . . . . . . . . . . . . . . . . . . . . . . . . . . . . Actions | -11 -10 -10 -9 -9 -9 -8 -8 -7 -7 -7 -7 -6 -6 -6 -6 -6 -6 -6 -5 -5 -5 -5 -5 -5 -4 -4 -4 -4 -3 -3 -2 -2 -1 -1 --------- Run | Scr Mat Min Mat Min Exi Min Mat Fac Low Low Dat Pro Fac Was Fac Low Low Zio Pro Fac Ext Cet Arc Hub Fac Upp Upp War Pro Res Res Tes Acc Com Total 28039 | 83 580 722 1164 633 313 681 827 714 815 632 83 642 1248 100 880 1819 661 1098 934 1480 1488 275 915 607 736 1001 908 904 760 603 176 1106 1003 1448 Wait 4457 | 2 46 142 408 27 . 21 127 20 17 39 . 53 172 10 174 142 68 143 253 336 181 116 812 119 133 42 76 102 124 74 14 157 177 130 Move 21425 | 64 452 511 615 565 309 610 537 583 710 570 83 533 1025 88 652 1602 565 942 646 1067 1177 135 95 466 517 871 802 730 594 479 139 810 695 1186 Hop . | . . . . . . . . . . . . . . . . . . . . . . . . . . . . . . . . . . . Pick Up 162 | 4 13 10 20 4 3 4 14 11 5 2 . 2 7 1 5 4 2 5 1 5 6 2 . . 6 2 1 5 1 3 1 4 5 4 Fast Attach 116 | 6 3 . 4 . . 1 4 7 6 1 . 1 5 . 3 . . . . 3 4 7 . 4 . . . 5 1 4 5 16 17 9 Attach 60 | . 1 7 9 2 . 1 3 3 . . . . 1 . 3 . . . . 3 2 1 . . 3 . . . . 2 . 1 8 10 Detach 31 | . 2 . 1 . . . 1 2 . . . . . . 3 . . . . 1 . . . . . . . 1 . 1 1 3 8 7 Swap 358 | . 15 8 14 3 . 11 22 20 18 7 . 19 12 . 16 16 6 3 12 14 27 . 3 4 26 8 10 5 7 7 5 24 8 8 Drop 246 | . 9 . 18 4 1 4 23 15 12 3 . 6 10 1 7 3 2 5 1 5 10 8 . 5 8 1 1 15 2 6 4 22 16 19 Fire 766 | 7 39 44 72 25 . 27 65 51 27 10 . 27 10 . 15 47 18 . 20 26 46 6 5 9 41 12 18 . 22 19 . 31 14 13 Melee 205 | . . . 2 . . . . 1 . . . . 4 . . 5 . . 1 20 9 . . . 2 . . . . . 7 38 54 62 Ram . | . . . . . . . . . . . . . . . . . . . . . . . . . . . . . . . . . . . Kick . | . . . . . . . . . . . . . . . . . . . . . . . . . . . . . . . . . . . Crush 11 | . . . 1 3 . 2 2 1 2 . . . . . . . . . . . . . . . . . . . . . . . . . Escape Stasis 35 | . . . . . . . . . . . . . . . . . . . . . 26 . . . . . . . . 8 . . 1 . Rewire 127 | . . . . . . . . . 18 . . . 2 . 1 . . . . . . . . . . 65 . 41 . . . . . . Trap 40 | . . . . . . . 29 . . . . 1 . . 1 . . . . . . . . . . . . . 9 . . . . . Miscellaneous . | . . . . . . . . . . . . . . . . . . . . . . . . . . . . . . . . . . . Route ------- -11/Scrapyard -10/Materials (discovered 4 exits: *Mat x2 / *Min x2) -10/Mines (discovered 2 exits: *Mat x2) -9/Materials (discovered 2 exits: *Mat / [*Min]) -9/Mines (discovered 3 exits: *Mat x2 / [*Exi]) -9/Exiles -8/Mines (discovered 2 exits: *Mat x2) -8/Materials (discovered 2 exits: *Fac x2) -7/Factory (discovered 4 exits: Sto x2 / *Low x2) -7/Lower Caves -7/Lower Caves (discovered 2 exits: *Fac / *Dat) -7/Data Miner -6/Proximity Caves -6/Factory (discovered 2 exits: *Fac / *Low) -6/Waste -6/Factory -6/Lower Caves -6/Lower Caves -6/Zion -5/Proximity Caves -5/Factory (discovered 5 exits: *Fac x2 / Upp x2 / *Ext) -5/Extension (discovered 2 exits: *Fac / *Cet) -5/Cetus -5/Archives (discovered 3 exits: *Fac / *Hub x2) -5/Hub_04(d) (discovered 3 exits: *Fac x3) -4/Factory (discovered 4 exits: *Res / *Upp x2 / Arm) -4/Upper Caves -4/Upper Caves -4/Warlord -3/Proximity Caves -3/Research -2/Research -2/Testing -1/Access -1/Command History --------- Turn | Location | Event 33 | -11/Scrapyard | Discovered new exit (range 15) 134 | -11/Scrapyard | Entered Materials 142 | -10/Materials | Discovered new exit (range 14) 216 | -10/Materials | Identified exit to Mines 281 | -10/Materials | Discovered new exit (range 16) 305 | -10/Materials | Build established: Mutant 702 | -10/Materials | Discovered new exit (range 8) 992 | -10/Materials | Discovered exit to Mines (range 7) 1026 | -10/Materials | Build established: Hauler-Mutant 1090 | -10/Materials | Entered Mines 1372 | -10/Mines | Learned location of 1 exit from Materials 1435 | -10/Mines | Discovered new exit (range 7) 1561 | -10/Mines | Assembled infested the area 1566 | -10/Mines | Assisted by a Guerilla fighting off Assembled 1610 | -10/Mines | Core integrity fell below 50% 1650 | -10/Mines | Lost 6 parts (1p2n3w) 1659 | -10/Mines | Destroyed 11 combat bots 1743 | -10/Mines | Discovered new exit (range 13) 1944 | -10/Mines | Met a Derelict who couldn't figure out how to use a Trap Extractor 2287 | -10/Mines | Entered Materials 2287 | -9/Materials | Accompanied by 1 ally 2287 | -9/Materials | Evolved 2 slots: Utility x2 2288 | -9/Materials | Identified exit to Materials 2292 | -9/Materials | Led the pair of lost Derelicts to an unsafe place 2577 | -9/Materials | Lost 7 parts (1p2n1u3w) 2851 | -9/Materials | Repaired Cmb. Airjet 2902 | -9/Materials | Repaired Cmb. Airjet 2941 | -9/Materials | Repaired Imp. Weapon Shielding 3948 | -9/Materials | Discovered new exit (range 7) 4083 | -9/Materials | Entered Mines 4123 | -9/Mines | Discovered exit to Materials (range 9) 4321 | -9/Mines | Met a Derelict testing a Signal Generator 4777 | -9/Mines | A weapon hastily lodged in a ceiling crevice suddenly fell to the ground 5087 | -9/Mines | Deemed a non-threat by the Exiles lab entrance 5125 | -9/Mines | Learned Materials emergency access door positions 5321 | -9/Mines | Discovered new exit (range 5) 5329 | -9/Mines | Entered Exiles 5329 | -9/Exiles | Found Exiles lab abandoned 5925 | -9/Exiles | Discovered new exit (range 14) 5951 | -9/Exiles | Entered Mines 6002 | -8/Mines | Discovered exit to Materials (range 16) 6044 | -8/Mines | Destroyed 7 combat bots 6793 | -8/Mines | Discovered exit to Materials (range 14) 7284 | -8/Mines | Entered Materials 7284 | -8/Materials | Evolved 2 slots: Propulsion x1, Utility x1 7851 | -8/Materials | Discovered new exit (range 15) 8166 | -8/Materials | Garrison activated, responded to threat 8281 | -8/Materials | Build established: Scavenger-Mutant 8609 | -8/Materials | Discovered new exit (range 16) 8637 | -8/Materials | Identified exit to Factory 8641 | -8/Materials | Entered Factory 8641 | -7/Factory | Evolved 2 slots: Propulsion x1, Utility x1 8685 | -7/Factory | Identified exit to Storage 8685 | -7/Factory | Identified exit to Lower Caves 8957 | -7/Factory | Build established: Hacker-Mutant 9327 | -7/Factory | Fabricated Cmb. Airjet? 9483 | -7/Factory | Build established: Hauler-Mutant 9542 | -7/Factory | Local fabrication network quarantined 9841 | -7/Factory | First assault squad dispatched 9872 | -7/Factory | Entered Lower Caves 9937 | -7/Lower Caves | Core integrity fell below 50% 10070 | -7/Lower Caves | Attacked by a faux Warlord 10394 | -7/Lower Caves | Build established: Scavenger-Mutant 10443 | -7/Lower Caves | Encountered a Warlord checkpoint 10852 | -7/Lower Caves | Discovered new exit (range 7) 10855 | -7/Lower Caves | Identified exit to Lower Caves 10857 | -7/Lower Caves | Entered another Lower Caves area 10857 | -7/Lower Caves | Discovered new exit (range 12) 10865 | -7/Lower Caves | Identified exit to Factory 10937 | -7/Lower Caves | Encountered a Warlord checkpoint 10972 | -7/Lower Caves | Learned Factory trap positions 11110 | -7/Lower Caves | Discovered new exit (range 15) 11275 | -7/Lower Caves | Identified exit to Data Miner 11277 | -7/Lower Caves | Entered Data Miner 11277 | -7/Data Miner | Discovered new exit (range 6) 11289 | -7/Data Miner | Met Data Miner 11301 | -7/Data Miner | Learned location of Section 7 (-3) 11301 | -7/Data Miner | Acquired the access code to Warlord's prototype stash 11312 | -7/Data Miner | Received God Mode back door access code from Data Miner 11326 | -7/Data Miner | Identified exit to Proximity Caves 11327 | -7/Data Miner | Entered Proximity Caves 11356 | -6/Proximity Caves | Escorted by Enhanced Grunt 11693 | -6/Proximity Caves | Spotted B-75 Beast 11752 | -6/Proximity Caves | Learned 4 Factory zone layouts 11777 | -6/Proximity Caves | Discovered exit to Factory (range 6) 11791 | -6/Proximity Caves | Entered Factory 11791 | -6/Factory | Accompanied by 1 ally 11791 | -6/Factory | Evolved 2 slots: Power x1, Propulsion x1 11793 | -6/Factory | Loaded intel: 86 trap records 12005 | -6/Factory | Fabricated Cmb. Gravmag System (x2) 12079 | -6/Factory | Repaired Cmb. Airjet 12086 | -6/Factory | Local fabrication network quarantined 12116 | -6/Factory | Fabricated Cmb. Gravmag System (x2) 12273 | -6/Factory | Repaired Adv. Beam Cannon 12491 | -6/Factory | First assault squad dispatched 12517 | -6/Factory | Incoming assault squad redirected 12559 | -6/Factory | Discovered new exit (range 14) 12659 | -6/Factory | Discovered new exit (range 10) 12665 | -6/Factory | Identified exit to Lower Caves 12681 | -6/Factory | Manually triggered Chute Trap 12681 | -6/Factory | Sucked down chute 12681 | -6/Factory | Entered Waste 12685 | -6/Waste | Found Broken Enh. Force Lance 12696 | -6/Waste | EMP discharged 12716 | -6/Waste | Spotted C-40 Crusher 12717 | -6/Waste | Spotted C-40 Crusher 12717 | -6/Waste | Spotted C-40 Crusher 12718 | -6/Waste | Spotted C-40 Crusher 12719 | -6/Waste | Spotted C-40 Crusher 12728 | -6/Waste | Spotted C-40 Crusher 12732 | -6/Waste | Discovered new exit (range 16) 12741 | -6/Waste | Identified exit to Factory 12749 | -6/Waste | Entered Factory 12834 | -6/Factory | Discovered exit to Lower Caves (range 16) 12913 | -6/Factory | Fabricated Lrn. Sensor Array (x1) 13397 | -6/Factory | Fabricated Mni. Smartbomb Launcher (x1) 13423 | -6/Factory | Entered Lower Caves 13423 | -6/Lower Caves | Accompanied by 1 ally 13505 | -6/Lower Caves | Build established: Machinist-Mutant 13908 | -6/Lower Caves | Learned Factory trap positions 14008 | -6/Lower Caves | Learned location of 1 exit from Factory 14639 | -6/Lower Caves | Discovered new exit (range 11) 14654 | -6/Lower Caves | Identified exit to Lower Caves 14738 | -6/Lower Caves | Encountered a Warlord checkpoint 15616 | -6/Lower Caves | Entered another Lower Caves area 15616 | -6/Lower Caves | Accompanied by 1 ally 15641 | -6/Lower Caves | Encountered a Warlord checkpoint 16225 | -6/Lower Caves | Discovered new exit (range 12) 16239 | -6/Lower Caves | Attracted the attention of an 0b10 checkpoint 16339 | -6/Lower Caves | Identified exit to Zion 16408 | -6/Lower Caves | Entered Zion 16408 | -6/Zion | Accompanied by 1 ally 16459 | -6/Zion | Discovered new exit (range 8) 16470 | -6/Zion | Identified exit to Proximity Caves 16492 | -6/Zion | Given A8's code to call for help 16554 | -6/Zion | Learned location of Armory (-4) 16578 | -6/Zion | Build established: Scavenger-Mutant 17202 | -6/Zion | Given the Hacking Drone Bay 17202 | -6/Zion | Found Prototype Device 17203 | -6/Zion | Identified Hacking Drone Bay 17261 | -6/Zion | Imprinted 17263 | -6/Zion | Declared Zion's savior 17528 | -6/Zion | Entered Proximity Caves 17528 | -5/Proximity Caves | Accompanied by 5 allies 17641 | -5/Proximity Caves | Learned location of 1 exit from Factory 18077 | -5/Proximity Caves | Received a Behemoth hack from an annoying Tinkerer 18083 | -5/Proximity Caves | Build established: Machinist-Mutant 18470 | -5/Proximity Caves | Discovered new exit (range 7) 18542 | -5/Proximity Caves | Identified exit to Factory 18548 | -5/Proximity Caves | Entered Factory 18548 | -5/Factory | Accompanied by 3 allies 18548 | -5/Factory | Evolved 2 slots: Utility x2 18549 | -5/Factory | Identified exit to Upper Caves 18549 | -5/Factory | Identified exit to Extension 18550 | -5/Factory | Identified exit to Factory 18551 | -5/Factory | Loaded intel: 81 trap records 18726 | -5/Factory | Incoming investigation squad redirected 18953 | -5/Factory | Retrieved Zion intel report: Prototype Stockpiles 19205 | -5/Factory | Fabricated Cmb. Gravmag System? 19356 | -5/Factory | Retrieved Zion intel report: Active Garrisons 19357 | -5/Factory | Zion Fire squad teleported in 19494 | -5/Factory | Discovered exit to Factory (range 12) 19502 | -5/Factory | Zion Heavy squad teleported in 19543 | -5/Factory | Repaired Imp. Heavy Armor Plating 19581 | -5/Factory | Fabricated Cmb. Gravmag System? 19769 | -5/Factory | Entered Extension 19769 | -5/Extension | Accompanied by 1 ally 19814 | -5/Extension | Rescued a captive Derelict 19814 | -5/Extension | Rescued a captive Derelict 19860 | -5/Extension | Rescued a captive Derelict 19860 | -5/Extension | Retrieved Zion intel report: Unaware Schematics 19861 | -5/Extension | Rescued a captive Derelict 19864 | -5/Extension | Retrieved Zion intel report: Emergency Access 19864 | -5/Extension | Rescued a captive Derelict 19867 | -5/Extension | Enhanced Grunt warped into view, answering call for help 19867 | -5/Extension | Enhanced Grunt warped into view, answering call for help 19874 | -5/Extension | Rescued a captive Derelict 19874 | -5/Extension | Retrieved Zion intel report: Depthwide Sectors/-1 19875 | -5/Extension | Rescued a captive Derelict 19937 | -5/Extension | Retrieved Zion intel report: Prototype Schematics 20069 | -5/Extension | Retrieved Zion intel report: Unaware Schematics 20343 | -5/Extension | Spotted B-75 Beast 20354 | -5/Extension | Allies destroyed B-75 Beast 20361 | -5/Extension | Spotted B-75 Beast 20398 | -5/Extension | Allies destroyed B-75 Beast 20402 | -5/Extension | Found Prototype Device 20403 | -5/Extension | Identified Exp. Thermal Shield 20419 | -5/Extension | Retrieved Zion intel report: Prototype Schematics 20595 | -5/Extension | Retrieved Zion intel report: Prototype Stockpiles 20686 | -5/Extension | Rescued A7 20686 | -5/Extension | Retrieved Zion intel report: Component Stockpiles 20693 | -5/Extension | Retrieved Zion intel report: Active Terminals 20711 | -5/Extension | Retrieved Zion intel report: Unaware Schematics 20725 | -5/Extension | Retrieved Zion intel report: Depthwide Sectors/0 20819 | -5/Extension | Retrieved Zion intel report: Branch Access 20819 | -5/Extension | Identified exit to Cetus 20819 | -5/Extension | Rescued a captive Derelict 20820 | -5/Extension | Zion Heavy squad teleported in 20861 | -5/Extension | Discovered exit to Factory (range 10) 20900 | -5/Extension | Entered Cetus 20900 | -5/Cetus | Accompanied by 11 allies (A7) 20905 | -5/Cetus | Acquired a Cetus Manufacturing Module code from A7 20910 | -5/Cetus | Spotted Cetus Guard 20910 | -5/Cetus | Spotted Cetus Guard 20915 | -5/Cetus | Allies destroyed Cetus Guard 20915 | -5/Cetus | Spotted Cetus Guard 20918 | -5/Cetus | Destroyed Cetus Guard 20918 | -5/Cetus | Spotted Cetus Guard 20920 | -5/Cetus | Destroyed Cetus Guard 20921 | -5/Cetus | Allies destroyed Cetus Guard 20970 | -5/Cetus | Started Cetus Manufacturing Module 20974 | -5/Cetus | Zion Heavy squad teleported in 20977 | -5/Cetus | Escorted A7 to Cetus Mainframe 20995 | -5/Cetus | Manufactured an Enhanced Grunt 20995 | -5/Cetus | Discovered new exit (range 15) 21006 | -5/Cetus | Identified exit to Archives 21020 | -5/Cetus | Manufactured an Enhanced Grunt 21033 | -5/Cetus | Build established: Commander-Mutant 21045 | -5/Cetus | Manufactured an Enhanced Grunt 21070 | -5/Cetus | Manufactured an Enhanced Grunt 21095 | -5/Cetus | Manufactured an Enhanced Grunt 21136 | -5/Cetus | Entered Archives 21136 | -5/Archives | Accompanied by 11 allies (A7) 21141 | -5/Archives | Received a hacking code to weaken MAIN.C 21174 | -5/Archives | Discovered new exit (range 16) 21181 | -5/Archives | Discovered new exit (range 15) 21189 | -5/Archives | Discovered exit to Factory (range 16) 21201 | -5/Archives | Unable to access archive contents 21434 | -5/Archives | Build established: Machinist-Mutant 22011 | -5/Archives | Identified exit to Hub_04(d) 22027 | -5/Archives | Entered Hub_04(d) 22027 | -5/Hub_04(d) | Accompanied by 10 allies 22053 | -5/Hub_04(d) | Discovered exit to Factory (range 8) 22138 | -5/Hub_04(d) | Discovered exit to Factory (range 7) 22233 | -5/Hub_04(d) | Retrieved Zion intel report: Unaware Analyses 22235 | -5/Hub_04(d) | Discovered exit to Factory (range 11) 22245 | -5/Hub_04(d) | Retrieved Zion intel report: Component Schematics 22257 | -5/Hub_04(d) | Found Prototype Protection 22257 | -5/Hub_04(d) | Identified Zio. Heavy Carapace 22263 | -5/Hub_04(d) | Found Prototype Protection 22263 | -5/Hub_04(d) | Identified Zio. Weapon Casing 22280 | -5/Hub_04(d) | Retrieved Zion intel report: Component Stockpiles 22458 | -5/Hub_04(d) | Network Hub disabled 22469 | -5/Hub_04(d) | Spotted Lightning 22473 | -5/Hub_04(d) | Spotted Lightning 22474 | -5/Hub_04(d) | Spotted Lightning 22474 | -5/Hub_04(d) | Spotted Lightning 22480 | -5/Hub_04(d) | Disrupted transfer network 22481 | -5/Hub_04(d) | Entered Factory 22481 | -4/Factory | Evolved 2 slots: Utility x2 22583 | -4/Factory | Discovered new exit (range 18) 22584 | -4/Factory | Identified exit to Upper Caves 22584 | -4/Factory | Identified exit to Armory 22640 | -4/Factory | Incoming investigation squad redirected 22676 | -4/Factory | Repaired Mni. Smartbomb Launcher 22767 | -4/Factory | First assault squad dispatched 22769 | -4/Factory | Retrieved Zion intel report: Trap Installations 22770 | -4/Factory | Zion hero teleported in (ME-RLN) 22793 | -4/Factory | Incoming assault squad redirected 22883 | -4/Factory | Found Quantum Capacitor 22958 | -4/Factory | Spotted B-86 Titan 22965 | -4/Factory | ME-RLN assimilated hostile B-86 Titan 23003 | -4/Factory | Incoming assault squad redirected 23015 | -4/Factory | Incoming investigation squad redirected 23028 | -4/Factory | Found Prototype Device 23029 | -4/Factory | Identified ME-RLN's Chromatic Screen 23101 | -4/Factory | Entered Upper Caves 23136 | -4/Upper Caves | Learned location of Quarantine (-3) 23154 | -4/Upper Caves | Encountered a Warlord checkpoint 23180 | -4/Upper Caves | Attacked by a delusional Derelict stockpiling Unaware 23259 | -4/Upper Caves | Build established: Scavenger-Mutant 23631 | -4/Upper Caves | Discovered new exit (range 11) 23636 | -4/Upper Caves | Identified exit to Upper Caves 23753 | -4/Upper Caves | Entered another Upper Caves area 23753 | -4/Upper Caves | Accompanied by 3 allies 24140 | -4/Upper Caves | Attracted the attention of an 0b10 checkpoint 24230 | -4/Upper Caves | Identified exit to Warlord 24264 | -4/Upper Caves | Spotted B-86 Titan 24350 | -4/Upper Caves | Entered Warlord 24350 | -4/Warlord | Accompanied by 3 allies 24372 | -4/Warlord | System corruption cleaned by Quarantine Array 24640 | -4/Warlord | Learned 4 Quarantine zone layouts 24640 | -4/Warlord | Learned Testing trap positions 24640 | -4/Warlord | Learned Quarantine emergency access door positions 24662 | -4/Warlord | Rebuked by Warlord 24672 | -4/Warlord | Opened Warlord's prototype stash 24676 | -4/Warlord | Found Prototype Processor 24676 | -4/Warlord | Identified Spectral Analyzer 24682 | -4/Warlord | Found Prototype Device 24682 | -4/Warlord | Identified Exp. Phase Shifter 24687 | -4/Warlord | Warlord's base attacked by MAIN.C 24696 | -4/Warlord | Found Prototype Reactor 24731 | -4/Warlord | Found Prototype Device 24732 | -4/Warlord | Identified Minesniffer Drone Bay 24760 | -4/Warlord | Met EX-DEC 24768 | -4/Warlord | Found Prototype Energy Cannon 24825 | -4/Warlord | Build established: Commander-Mutant 24886 | -4/Warlord | Opened side exit 24903 | -4/Warlord | Discovered new exit (range 9) 24906 | -4/Warlord | Identified exit to Proximity Caves 24928 | -4/Warlord | Entered Proximity Caves 24928 | -3/Proximity Caves | Accompanied by 6 allies 24948 | -3/Proximity Caves | Spotted B-86 Titan 24971 | -3/Proximity Caves | Destroyed B-86 Titan 25456 | -3/Proximity Caves | Discovered new exit (range 10) 25460 | -3/Proximity Caves | Identified exit to Research 25489 | -3/Proximity Caves | Entered Research 25489 | -3/Research | Accompanied by 6 allies 25489 | -3/Research | Evolved 2 slots: Propulsion x1, Utility x1 25497 | -3/Research | Identified BFG-9k Vortex Edition 25497 | -3/Research | Identified Vortex Chain Reactor 25714 | -3/Research | Found Prototype Protection 25714 | -3/Research | Identified Centrium Heavy Armor Plating 25739 | -3/Research | First assault squad dispatched 25759 | -3/Research | Incoming assault squad redirected 25835 | -3/Research | Build established: Scavenger-Mutant 25847 | -3/Research | Discovered new exit (range 4) 25848 | -3/Research | Identified exit to Research 25887 | -3/Research | Entered another Research area 25887 | -2/Research | Evolved 2 slots: Weapon x2 25930 | -2/Research | Discovered new exit (range 10) 25973 | -2/Research | Identified exit to Testing 26009 | -2/Research | Entered Testing 26010 | -2/Testing | Loaded intel: 8 trap records 26071 | -2/Testing | Repaired Centrium Medium Armor Plating? 26155 | -2/Testing | Found Prototype Launcher 26155 | -2/Testing | Identified Tactical Quantum Warhead 26221 | -2/Testing | Retrieved Zion intel report: Active Terminals 26300 | -2/Testing | Fabricated Exp. Signal Interpreter? 26395 | -2/Testing | Spotted PX-MV5S3QI3NL 26417 | -2/Testing | Destroyed PX-MV5S3QI3NL 26423 | -2/Testing | Found Exp. Transmission Jammer 26455 | -2/Testing | Spotted Striker 26456 | -2/Testing | Spotted Striker 26494 | -2/Testing | Found Prototype Energy Cannon 26494 | -2/Testing | Identified Hpw. Disruptor Cannon 26516 | -2/Testing | Discovered new exit (range 7) 26519 | -2/Testing | Identified exit to Access 26526 | -2/Testing | Retrieved Zion intel report: Active Garrisons 26557 | -2/Testing | Found Prototype Protection 26559 | -2/Testing | Retrieved Zion intel report: Unaware Analyses 26571 | -2/Testing | Retrieved Zion intel report: Prototype Stockpiles 26625 | -2/Testing | Found Prototype Energy Cannon 26625 | -2/Testing | Identified Potential Cannon 26627 | -2/Testing | Found Prototype Energy Cannon 26627 | -2/Testing | Identified Imp. Potential Cannon 26761 | -2/Testing | Retrieved Zion intel report: Component Schematics 26819 | -2/Testing | Entered Access 26819 | -1/Access | Evolved 2 slots: Weapon x2 27019 | -1/Access | Destroyed 9 combat bots 27052 | -1/Access | Build established: Machinist-Mutant 27082 | -1/Access | Crushed by falling debris 27090 | -1/Access | Incoming investigation squad redirected 27100 | -1/Access | Zion Zionite Resupply teleported in 27102 | -1/Access | Found Prototype Protection 27102 | -1/Access | Identified Zio. Shade Carapace 27130 | -1/Access | Found Prototype Protection 27130 | -1/Access | Identified Zio. Shade Armor 27140 | -1/Access | Identified Hvy. Regenerative Plating 27141 | -1/Access | Found Zio. Shade Carapace 27161 | -1/Access | System corruption reached 10% 27163 | -1/Access | P-80 Master assimilated allied 2S-TX5(A) 27319 | -1/Access | First assault squad dispatched 27389 | -1/Access | Zion Melee Resupply teleported in 27392 | -1/Access | Found Prototype Slashing Weapon 27392 | -1/Access | Identified Vibroblade 27505 | -1/Access | Discovered new exit (range 7) 27579 | -1/Access | Entered Command 27655 | -1/Command | Retrieved Zion intel report: Trap Installations 27742 | -1/Command | Spotted B-99 Colossus 27793 | -1/Command | Disengaged cave seal 27800 | -1/Command | Retrieved Zion intel report: Unaware Analyses 27810 | -1/Command | Found Prototype Slashing Weapon 27810 | -1/Command | Identified Molecular Scythe 27911 | -1/Command | Retrieved Zion intel report: Component Schematics 27961 | -1/Command | Retrieved Zion intel report: Component Schematics 27988 | -1/Command | Repaired Cmb. Gravmag System 28000 | -1/Command | Retrieved Zion intel report: Component Schematics 28007 | -1/Command | Retrieved Zion intel report: Active Garrisons 28058 | -1/Command | High security lockdown imminent 28079 | -1/Command | Destroyed 7 combat bots 28138 | -1/Command | High security lockdown engaged 28159 | -1/Command | Found Antimissile System 28191 | -1/Command | Spotted Striker 28201 | -1/Command | Spotted Executioner 28203 | -1/Command | Allies destroyed Striker 28212 | -1/Command | Destroyed Executioner 28422 | -1/Command | Spotted M Guard 28422 | -1/Command | Spotted M Guard 28422 | -1/Command | Spotted Combat Programmer 28426 | -1/Command | Spotted Combat Programmer 28442 | -1/Command | Allies destroyed Combat Programmer 28487 | -1/Command | Spotted Striker 28487 | -1/Command | Spotted Striker 28494 | -1/Command | Spotted Striker 28494 | -1/Command | Spotted Striker 28494 | -1/Command | Spotted Executioner 28494 | -1/Command | Spotted Executioner 28495 | -1/Command | Spotted Striker 28502 | -1/Command | Core integrity fell below 50% 28525 | -1/Command | Lost 19 parts (2p5n10u2w) 28548 | -1/Command | Core integrity fell below 20% 28553 | -1/Command | Destroyed Striker 28567 | -1/Command | Destroyed by Striker with Plasma Lance Last Messages --------------- 28501_ Striker Adv. Reaction Control System severed. 28502_ Extracted 5 energy. 28507_ Extracted 7 energy. 28508_ Extracted 27 energy. 28509_ Extracted 7 energy. 28509_ Acquired Adv. Energy Well. 28526_ System corrupted: Energy discharge (-7). 28531_ Dropped Lrg. Storage Unit. 28532_ Cmb. Linear Gravjet destroyed. 28537_ BFG-9k Vortex Edition destroyed. 28540_ Striker suffers critical hit. 28540_ Destroyed Lgt. Quantum Reactor. 28542_ Phasing Sabre follow-up attack on Striker. 28553_ Striker destroyed. 28554_ System corrupted: Matter fused (-8). 28555_ Phasing Sabre follow-up attack on M Guard. 28557_ Imp. Melee Analysis Suite destroyed. 28557_ Phasing Sabre destroyed. 28562_ Tactical Quantum Warhead destroyed. 28562_ Destroyed Tactical Quantum Warhead. Map ----- +----------------------------------------------------+ | ?????????????????????????????????????????????????? | | ?????????????????????????????????????????????????? | | ?????????????????????????????????????????????????? | | ?????????????????????????????????????????????????? | | ?????????????????????????????????????????????????? | | ?????????????????????????????????????????????????? | | ?????????????????????????????????????????????????? | | ?????????????????????????????????????????????????? | | ?????????????????????????????????????????????????? | | ?????????????????????????????????????????????????? | | ?????????????????????????????????????????????????? | | ?????????????????????????????????????????????????? | | ?????????????????????????????????????????????????? | | ?????????????????????????????????????????????????? | | ?????????????????????????????????????????????????? | | ?????????????????????????????????????????????????? | | ?????????????????????????????????????????????????? | | ?????????????????????????????????????????????????? | | ?????????????????????????????????????????????????? | | ?????????????????????????????????????????????????? | | ?????????????????????????????????????????????????? | | ?????????????????????????????????????????????????? | | ?????????????????????????????????#####???????????? | | ?????????????????????????????????# ####?###????? | | ?????????????????????#"""##?###### ## ###### | | ?????????????????????# KK@# ## ## | | ?????????????????????#! p## ## # # | | ?????????????????????# Y] | | ?????????????????????# | | ?????????????????????# | | ??????????????????# # % ! | | ??????????????????# | | ??????????????????# # # "# # ## | | ??????????????????# ####### ## # | | ?????????????????# #?????# # ""### #### | | ????????????????# #??????## "%%#?## # ##??? | | ????????????????##????????### ""#??###########???? | | ????????????????????????????? "#????????????????? | | ????????????????????????????? %#????????????????? | | ????????????????????????????? #????????????????? | | ????????????????????????????? #????????????????? | | ????????????????????????????? #????????????????? | | ????????????????????????????? #????????????????? | | ????????????????????????????? #????????????????? | | ?????????????????????????????? #????????????????? | | ?????????????????????????????? #????????????????? | | ?????????????????????????????? #???????????????## | | ?????????????????????????????? ?????????????????# | | ????????????????????????????????????????????????# | | ????????????????????????????????????????????????# | +----------------------------------------------------+ Best States ------------- Heat Dissipation 152 Energy Generation 55 Energy Capacity 900 Matter Stores 402 Matter Capacity 450 Sight Range 16 Robot Scan Range 22 Terrain Scan Density 10 Jamming Range 22 Armor Coverage 1450 Resistance: KI 30 Resistance: TH 30 Resistance: EX 30 Resistance: EM 30 Resistance: I 30 Resistance: S 30 Resistance: P 30 Weapon Shielding 100 Point Defense Rating 240 Melee Speed Boost 20 Evasion (%) 55 Targeting Accuracy 8 Melee Accuracy 6 Armor Integrity Analysis 33 Recoil Reduction 4 Energy Filtering 50 Offensive Hacking 20 Item Schematics ----------------- Hcp. Storage Unit | -10/Materials | Hacked Cmb. Airjet | -9/Materials | Scanalyzed Imp. Weapon Shielding | -9/Materials | Scanalyzed Imp. Trap Extractor | -9/Materials | Scanalyzed Imp. Signal Interpreter | -9/Materials | Scanalyzed Scythe | -9/Materials | Scanalyzed Arm. Wheel | -9/Materials | Scanalyzed Hacking Suite | -8/Materials | Scanalyzed Lrn. Sensor Array | -7/Factory | Hacked Combat Drone Bay | -7/Data Miner | Free Lgt. Regenerative Plating | -7/Data Miner | Free Exp. Flexi-carbon Leg | -7/Data Miner | Free Cmb. Gravmag System | -7/Data Miner | Free Exp. Cesium-ion Thruster | -7/Data Miner | Free Exp. Terrain Scanner | -7/Data Miner | Free Exp. Terrain Scan Processor | -7/Data Miner | Free Tactical Coordination Suite | -7/Data Miner | Free Exp. Transmission Jammer | -7/Data Miner | Free Mni. Smartbomb Launcher | -7/Data Miner | Free Plasma Sword | -7/Data Miner | Free Adv. Signal Interpreter | -6/Factory | Hacked Enh. Force Rifle | -5/Extension | Z-intel Adv. Power Amplifier | -5/Extension | Z-intel Lgt. Neutrino Core | -5/Extension | Z-intel Cld. Airjet | -5/Extension | Z-intel Imp. Energy Well | -5/Extension | Z-intel Imp. Cesium-ion Thruster | -5/Extension | Z-intel Exp. Targeting Computer | -5/Extension | Z-intel Cld. Plasma Rifle | -5/Extension | Z-intel Imp. Matter Compressor | -5/Extension | Z-intel Fusion Reactor | -5/Extension | Z-intel Enh. Fission Core | -5/Extension | Z-intel Enh. Coil Gun | -5/Extension | Z-intel Kinetic Spear | -5/Extension | Z-intel Ionic Axe | -5/Extension | Z-intel Cld. Deuterium Engine | -5/Extension | Z-intel Cld. Gravmag System | -5/Extension | Z-intel Exp. Signal Interpreter | -5/Extension | Z-intel Cld. Plasma Cannon | -5/Extension | Z-intel Cld. Particle Cannon | -5/Extension | Z-intel Rocket Array | -5/Extension | Z-intel Imp. Heavy Laser | -5/Extension | Z-intel Scatter Rocket Array | -5/Extension | Z-intel Focal Shield | -5/Hub_04(d) | Z-intel Disruptor Cannon | -5/Hub_04(d) | Z-intel Point Defense System | -5/Hub_04(d) | Z-intel Lgt. Angular Momentum Engine | -5/Hub_04(d) | Z-intel Hvy. Plasma Cannon | -5/Hub_04(d) | Z-intel Cloaking Device | -5/Hub_04(d) | Z-intel Utility Shielding | -5/Hub_04(d) | Z-intel Imp. Proton Missile Launcher | -5/Hub_04(d) | Z-intel Force Field | -5/Hub_04(d) | Z-intel Launcher Guidance Computer | -5/Hub_04(d) | Z-intel Axe | -5/Hub_04(d) | Z-intel Hcp. Matter Pod | -5/Hub_04(d) | Z-intel Sml. Storage Unit | -5/Hub_04(d) | Z-intel Adv. Cooling System | -5/Hub_04(d) | Z-intel 0b10 Decoder Chip [Scout] | -4/Factory | Scanalyzed Quantum Capacitor | -4/Factory | Scanalyzed Centrium Medium Armor Plating | -4/Factory | Scanalyzed Imp. System Backup Module | -4/Factory | Scanalyzed Mak. Transmission Jammer | -4/Factory | Scanalyzed Adv. Variable Charge Gun | -4/Factory | Scanalyzed Imp. Remote Datajack | -4/Factory | Scanalyzed Gamma Bomb Array | -2/Testing | Z-intel Adv. Heavy Treads | -2/Testing | Z-intel System Shield | -2/Testing | Z-intel Arm. Heavy Treads | -2/Testing | Z-intel Antigrav System | -2/Testing | Z-intel Adv. Target Analyzer | -2/Testing | Z-intel Adv. Drone Bay | -2/Testing | Z-intel Power Amplifier | -2/Testing | Z-intel Adv. Datajack | -2/Testing | Z-intel Matter Filter | -2/Testing | Z-intel Imp. Transmission Jammer | -2/Testing | Z-intel Hvy. Gauss Cannon | -2/Testing | Z-intel Imp. Shock Absorption System | -2/Testing | Z-intel Imp. Recalibrator | -1/Command | Z-intel Imp. Remote Shield | -1/Command | Z-intel Force Lance | -1/Command | Z-intel Adv. Recalibrator | -1/Command | Z-intel Remote Force Field | -1/Command | Z-intel Adv. Weight Redist. System | -1/Command | Z-intel Adv. System Shield | -1/Command | Z-intel Lrn. Tractor Beam | -1/Command | Z-intel Imp. Gyrokinetic Inverter | -1/Command | Z-intel Adv. Force Field | -1/Command | Z-intel Imp. Remote Force Field | -1/Command | Z-intel Chainsword | -1/Command | Z-intel Adv. Trap Extractor | -1/Command | Z-intel Imp. Phase Shifter | -1/Command | Z-intel Q-thruster | -1/Command | Z-intel Adv. Terrain Scan Processor | -1/Command | Z-intel Energy Filter | -1/Command | Z-intel Nanoactuators | -1/Command | Z-intel Adv. Armor Integrity Analyzer | -1/Command | Z-intel Imp. Arc Projector | -1/Command | Z-intel Imp. Maneuvering Thrusters | -1/Command | Z-intel Hardcell Cannon | -1/Command | Z-intel Imp. Targeting Computer | -1/Command | Z-intel Adv. Transmission Jammer | -1/Command | Z-intel Med. Reflective Plating | -1/Command | Z-intel Biometal Medium Treads | -1/Command | Z-intel Imp. System Shield | -1/Command | Z-intel Imp. Hacking Suite | -1/Command | Z-intel HERF Cannon | -1/Command | Z-intel Tesla Rifle | -1/Command | Z-intel Centrium Leg | -1/Command | Z-intel System Guard | -1/Command | Z-intel Hvy. Disruptor Cannon | -1/Command | Z-intel Adv. Targeting Computer | -1/Command | Z-intel Mni. Drone Bay | -1/Command | Z-intel Matter Neutralizer | -1/Command | Z-intel Antigrav Array | -1/Command | Z-intel Adv. Melee Analysis Suite | -1/Command | Z-intel Dispersion Rifle | -1/Command | Z-intel Biometal Heavy Treads | -1/Command | Z-intel Imp. Linear Gravjet | -1/Command | Z-intel Robot Schematics ------------------ S-27 Virus | -7/Data Miner | Free G-50 Soldier | -7/Data Miner | Free L-41 Fighter | -7/Data Miner | Free H-66 Slayer | -7/Data Miner | Free I-36 Angel | -7/Data Miner | Free I-47 Archangel | -7/Data Miner | Free E-15 Imp | -5/Extension | Z-intel B-48 Gladiator | -5/Extension | Z-intel K-01 Serf | -5/Extension | Z-intel R-10 Processor | -5/Extension | Z-intel A-15 Conveyor | -5/Extension | Z-intel X-72 Disruptor | -5/Extension | Z-intel T-07 Excavator | -5/Extension | Z-intel Y-64 Sentinel | -5/Extension | Z-intel B-60 Warrior | -5/Extension | Z-intel R-06 Scavenger | -5/Extension | Z-intel A-02 Transporter | -5/Extension | Z-intel Y-54 Guardian | -5/Extension | Z-intel P-70 Sage | -5/Extension | Z-intel M-22 Extractor | -5/Extension | Z-intel Fabricated ------------ Cmb. Airjet | x2 | -7/Factory Cmb. Gravmag System | x2 | -6/Factory Cmb. Gravmag System | x2 | -6/Factory Lrn. Sensor Array | x1 | -6/Factory Mni. Smartbomb Launcher | x1 | -6/Factory Cmb. Gravmag System | x2 | -5/Factory Cmb. Gravmag System | x2 | -5/Factory Exp. Signal Interpreter | x1 | -2/Testing Alien Tech Used ----------------- None Achievements -------------- None Challenges ------------ None Game ------ Seed MissileVortexSteel Manual? 0 Play Time 04:12:02 Cumulative 733.6 hours Start 2020.12.27 @ 12:26:48 End 2021.01.01 @ 02:09:20 Sessions 7 Manual Loads 0 Difficulty Rogue Special Mode None Game No. 523 Rogue 519 Adventurer 4 Explorer 0 Win Type - Total 80 Types 63/7/3/3/2/0/0/1/1 Lore% 94 Gallery% 97 Achievement% 96 Wizard Run 0 Options --------- ASCII 0 Keyboard 1 Movement Vi Keybinds 0 Fullscreen 0 Font 16/Terminus Map View 76x50 Tactical HUD 1 Map Filters NONE Filters NONE Steam 1 RUN: 3ac7402c-a51e-4547-aafc-5baf8bde03c1